Workbook

Sheet Auswertung NHACN
B4: 232.06762 | C4: 7.46 | D4: 4.95 | E4: 8.611 | F4: 7.51 | G4: 2.937 | H4: 3.9 | I4: 8.938 | J4: 2.05 | K4: 2.3635 | L4: 0.8846 | M4: 1.6901 | N4: 1.0728 | O4: 8.536 | P4: 8.3594 | Q4: 8.6015 | U4: T | V4: tau
B5: 247.540144 | C5: 8.212 | D5: 5.6055 | E5: 8.9186 | F5: 7.7162 | G5: 3.0393 | H5: 4.1135 | I5: 8.8102 | J5: 2.2433 | K5: 2.4746 | L5: 0.9616 | M5: 1.8006 | N5: 1.1294 | O5: 8.6436 | P5: 8.4409 | Q5: 8.6436 | U5: 293 | V5: 42.7 | W5: =1/U5 -> 0.003412969283 | X5: =LN(1/V5) -> -3.75419892
B6: 264.74989 | C6: 9.8077 | D6: 6.9701 | E6: 9.5543 | F6: 8.148 | G6: 3.2005 | H6: 4.5613 | I6: 8.5379 | J6: 2.5976 | K6: 2.693 | L6: 1.1197 | M6: 2.0142 | N6: 1.2226 | O6: 8.769 | P6: 8.6047 | Q6: 8.7328 | U6: 294 | V6: 38 | W6: =1/U6 -> 0.003401360544 | X6: =LN(1/V6) -> -3.63758616
B7: 280.5428 | C7: 12.618 | D7: 9.4219 | E7: 10.6798 | F7: 8.9163 | G7: 3.4651 | H7: 5.3379 | I7: 8.0502 | J7: 3.2222 | K7: 3.0465 | L7: 1.3681 | N7: 1.3681 | O7: 9.024 | U7: 300.26 | V7: 33 | W7: 0.003330446946 | X7: -3.496507561
B8: 285.6183 | C8: 14.0121 | D8: 10.6457 | E8: 11.2269 | F8: 9.3004 | G8: 3.5861 | H8: 5.7179 | I8: 7.806 | J8: 3.5861 | K8: 3.215 | L8: 1.4759 | M8: 2.559 | N8: 1.4636 | O8: 9.1492 | P8: 9.0502 | Q8: 8.9772 | U8: 316.07 | V8: 29 | W8: 0.003163856108 | X8: -3.36729583
B9: 285.94522 | C9: 14.0541 | D9: 10.6716 | E9: 11.2336 | F9: 9.3077 | G9: 3.549 | H9: 5.7269 | I9: 7.7989 | J9: 3.5907 | K9: 3.2233 | L9: 1.4964 | M9: 2.5642 | N9: 1.4639 | O9: 9.1486 | P9: 9.052 | Q9: 8.9777
B10: 290.6938 | P10: 9.2054 | Q10: 9.0682
B11: 295.7693 | C11: 17.2622 | D11: 13.5235 | E11: 12.5426 | F11: 10.2043 | G11: 3.9213 | H11: 6.6025 | I11: 7.2392 | J11: 4.2516 | K11: 3.61 | L11: 1.7843 | M11: 2.978 | N11: 1.5888 | O11: 9.4314
B12: 300.8448 | C12: 19.2848 | D12: 15.296 | E12: 13.3593 | F12: 10.7715 | G12: 4.1173 | H12: 7.1445 | I12: 6.8847 | J12: 4.7046 | K12: 3.8518 | L12: 1.9542 | M12: 3.2306 | N12: 1.6831 | O12: 9.6
B13: 316.0713 | C13: 26.6164 | D13: 21.7903 | E13: 16.3394 | F13: 12.8214 | G13: 4.8583 | H13: 9.1202 | I13: 5.6239 | J13: 6.3354 | K13: 4.7092 | L13: 2.5816 | M13: 4.1739 | O13: 10.2069 | P13: 10.4135
B14: 321.1468 | C14: 29.629 | D14: 24.4665 | E14: 17.5832 | F14: 13.6775 | G14: 5.1716 | H14: 9.9314 | J14: 7.0029 | K14: 5.0809 | L14: 2.8365 | M14: 4.5604 | O14: 10.4513 | P14: 10.7459 | Q14: 9.9997
B15: 326.2223 | C15: 33.0647 | D15: 27.5425 | E15: 18.9707 | F15: 14.6435 | G15: 5.4416 | H15: 10.8381 | I15: 4.5085 | J15: 7.7513 | K15: 5.4416 | L15: 3.1207 | M15: 4.9947 | N15: 2.3037 | O15: 10.7238 | P15: 11.1288 | Q15: 10.2371
B16: 331.2978 | C16: 36.3297 | D16: 30.4366 | E16: 20.313 | F16: 15.5887 | G16: 5.8197 | H16: 11.705 | I16: 3.9507 | J16: 8.4771 | K16: 5.8197 | L16: 3.3909 | M16: 5.4096 | N16: 2.4469 | O16: 10.9745 | P16: 11.4924 | Q16: 10.4657
B17: 336.3733 | C17: 39.7404 | D17: 33.4942 | E17: 21.731 | F17: 16.5694 | G17: 6.2116 | H17: 12.6153 | I17: 3.3663 | J17: 9.234 | K17: 6.2116 | L17: 3.679 | M17: 5.8468 | N17: 2.6055 | O17: 11.2357 | P17: 11.8763 | Q17: 10.7116
B29: 232.06762 | C29: 7.465288575 | D29: 4.946361883 | E29: 8.618932089 | F29: 7.514190688 | G29: 2.957267764 | H29: 3.905690629 | I29: 8.943014807 | J29: 2.070992749 | K29: 2.376938546 | L29: 0.89155128 | M29: 1.700903889 | N29: 1.087264706 | O29: 8.551352955 | P29: 8.362923377 | Q29: 8.601992906
B30: 247.540144 | C30: 8.161451438 | D30: 5.547443862 | E30: 8.893473475 | F30: 7.700778056 | G30: 3.022687889 | H30: 4.100903049 | I30: 8.821206243 | J30: 2.22937927 | K30: 2.469826223 | L30: 0.9574341939 | M30: 1.792899241 | N30: 1.128025694 | O30: 8.618284148 | P30: 8.433874219 | Q30: 8.638782906
B31: 264.74989 | C31: 9.815461599 | D31: 6.983663217 | E31: 9.550238895 | F31: 8.148811318 | G31: 3.180414073 | H31: 4.560632202 | I31: 8.532587213 | J31: 2.60342318 | K31: 2.684838724 | L31: 1.110744566 | M31: 2.010016109 | N31: 1.220328415 | O31: 8.772381248 | P31: 8.605090002 | Q31: 8.730965755
B32: 280.5428 | C32: 12.69041719 | D32: 9.494547536 | E32: 10.69981867 | F32: 8.936002495 | G32: 3.458667909 | H32: 5.352442852 | I32: 8.032320115 | J32: 3.249529315 | K32: 3.048425246 | L32: 1.371472692 | N32: 1.372656177 | O32: 9.031433772
B33: 285.6183 | C33: 13.98958429 | D33: 10.63328883 | E33: 11.22156713 | F33: 9.294110587 | G33: 3.585566824 | H33: 5.708197912 | I33: 7.806650293 | J33: 3.540355122 | K33: 3.209859988 | L33: 1.487667653 | M33: 2.553434722 | N33: 1.439199317 | O33: 9.146011399 | P33: 9.045367373 | Q33: 8.978389986
B34: 285.94522 | C34: 14.0804366 | D34: 10.71300147 | E34: 11.25809736 | F34: 9.319199558 | G34: 3.594463397 | H34: 5.733036547 | I34: 7.790876592 | J34: 3.560670821 | K34: 3.22109393 | L34: 1.495761898 | M34: 2.565213008 | N34: 1.443808472 | O34: 9.153975925 | P34: 9.055040351 | Q34: 8.983937949
B35: 290.6938 | P35: 9.206939691 | Q35: 9.071556452
B36: 295.7693 | C36: 17.24775103 | D36: 13.49762952 | E36: 12.53475515 | F36: 10.19715561 | G36: 3.906221088 | H36: 6.596119673 | I36: 7.241518852 | J36: 4.267338345 | K36: 3.608766588 | L36: 1.77569527 | M36: 2.97481417 | N36: 1.601321182 | O36: 9.428196573
B37: 300.8448 | C37: 19.23546633 | D37: 15.25018606 | E37: 13.338715 | F37: 10.75104819 | G37: 4.103286972 | H37: 7.1352517 | I37: 6.897242286 | J37: 4.709424621 | K37: 3.848555288 | L37: 1.949386538 | M37: 3.230970752 | N37: 1.697370062 | O37: 9.597251527
B38: 316.0713 | C38: 26.71064485 | D38: 21.86968685 | E38: 16.37801196 | F38: 12.85075937 | G38: 4.852504615 | H38: 9.14835018 | I38: 5.605302302 | J38: 6.363961512 | K38: 4.730245946 | L38: 2.591197839 | M38: 4.189153075 | O38: 10.21560238 | P38: 10.42424985
B39: 321.1468 | C39: 29.69160942 | D39: 24.52074879 | E39: 17.59628877 | F39: 13.69467803 | G39: 5.154483162 | H39: 9.945446927 | J39: 7.020596697 | K39: 5.073918592 | L39: 2.842643602 | M39: 4.569227791 | O39: 10.45531342 | P39: 10.75323574 | Q39: 10.00239693
B40: 326.2223 | C40: 32.8911734 | D40: 27.37293993 | E40: 18.90761981 | F40: 14.60439529 | G40: 5.480508091 | H40: 10.79761903 | I40: 4.540042058 | J40: 7.723506299 | K40: 5.438087125 | L40: 3.109859392 | M40: 4.975968707 | N40: 2.310988062 | O40: 10.70852192 | P40: 11.10853791 | Q40: 10.2242253
B41: 331.2978 | C41: 36.28205485 | D41: 30.40315077 | E41: 20.30149278 | F41: 15.57285875 | G41: 5.828141918 | H41: 11.69699208 | I41: 3.956654609 | J41: 8.46635863 | K41: 5.818798897 | L41: 3.390086118 | M41: 5.405690587 | N41: 2.452170992 | O41: 10.97233396 | P41: 11.48752132 | Q41: 10.46371601
B42: 336.3733 | C42: 39.82976042 | D42: 33.58175129 | E42: 21.76438891 | F42: 16.59091206 | G42: 6.1941863 | H42: 12.63381722 | I42: 3.34708463 | J42: 9.241263438 | K42: 6.211344905 | L42: 3.67999896 | M42: 5.853807951 | N42: 2.595266923 | O42: 11.24334078 | P42: 11.88672017 | Q42: 10.7191358
A45: 25grad (real28grad)
L46: T | M46: HS*LS
B47: daten der NMR auswertung freie Verfeinerung mitdH undDs aus Originklassicher Ausertung mit Durchschnitts C0 werten | L47: 300.28 | M47: 0.06877904376
B48: DH | C48: 30832 | D48: DS | E48: 81.7
A49: Proton | B49: dia | C49: C1 | D49: C0 | E49: C(298K) | F49: LW500 | G49: HH | H49: HH nb | I49: T1(ms) | J49: R2+Rex | K49: R1 | L49: R2dip/curie | M49: Rex | N49: dw^2 | O49: dw^2/Rex | P49: kex | Q49: tex(ns)
A50: o-Phen | B50: 7.006 | C50: -24.3 | D50: 55795 | E50: =D50+C50*298 -> 48553.6 | F50: 214 | G50: 5 | I50: 18.12 | J50: =(PI()*(F50-G50)) -> 656.5928646 | K50: =1/((I50/1000)) -> 55.18763797 | L50: =1.1*K50 -> 60.70640177 | M50: =J50-L50 -> 595.8864628 | N50: =(500*2*PI()*((D50/L$47)+C50))^2 -> 2.574530847e+11 | O50: =N50/M50 -> 432050567.9 | P50: =O50*$M$47 -> 29716024.92 | Q50: =(10^9)/P50 -> 33.65187648
A51: Ch2/1 | B51: 4.55 | C51: -8.36 | D51: 44910 | E51: =D51+C51*298 -> 42418.72 | F51: 165 | G51: 17 | I51: 46.15 | J51: =(PI()*(F51-G51)) -> 464.9557127 | K51: =1/((I51/1000)) -> 21.66847237 | L51: =1.1*K51 -> 23.83531961 | M51: =J51-L51 -> 441.1203931 | N51: =(500*2*PI()*((D51/L$47)+C51))^2 -> 1.967757891e+11 | O51: =N51/M51 -> 446081823 | P51: =O51*$M$47 -> 30681081.22 | Q51: =(10^9)/P51 -> 32.59337547
A52: meta mitte | B52: 8.439 | C52: -2.603 | D52: 20199 | E52: 19423.306 | F52: 40 | G52: 8.5 | I52: 191 | J52: =(PI()*(F52-G52)) -> 98.96016859 | K52: 5.235602094 | L52: 5.759162304 | M52: 93.20100628 | N52: =(500*2*PI()*((D52/L$47)+C52))^2 -> 4.126936583e+10 | O52: 442799573.5 | P52: 30455331.24 | Q52: 32.83497369
A53: meta ende | B53: 7.3929 | C53: 0.846 | D53: 13054 | E53: 13306.108 | F53: 24 | G53: 8.5 | I53: 223 | J53: =(PI()*(F53-G53)) -> 48.69468613 | K53: 4.484304933 | L53: 4.932735426 | M53: 43.7619507 | N53: =(500*2*PI()*((D53/L$47)+C53))^2 -> 1.938540695e+10 | O53: 442974013.8 | P53: 30467329.08 | Q53: 32.82204349
A54: para | B54: 8.5054 | C54: -10.0357 | D54: 7346 | E54: 4355.3614 | F54: 2.3 | H54: 18 | I54: 451 | K54: 2.2172949 | L54: 2.43902439
A55: phen a | B55: 8.317 | C55: 1.6477 | D55: 4622 | E55: 5113.0146 | F55: 3 | H55: 9 | I55: 475 | K55: 2.105263158 | L55: 2.315789474
A56: phen b | B56: 8.5794 | C56: 6.17 | D56: 1027 | E56: 2865.66 | F56: 1.5 | H56: 9 | I56: 482 | K56: 2.074688797 | L56: 2.282157676
A57: CH2/2 | B57: 3.7755 | C57: -13.19 | D57: 17285 | E57: 13354.38 | F57: 32 | G57: 3 | H57: 16 | I57: 25.08 | J57: =(PI()*(F57-G57)) -> 91.10618695 | K57: 39.87240829 | L57: 43.85964912 | M57: 47.24653783 | N57: =(500*2*PI()*((D57/L$47)+C57))^2 -> 1.943283571e+10 | O57: 411307084.1 | P57: 28289307.94 | Q57: 35.34904432
A58: para down | B58: 9.023 | C58: 5.489 | D58: -10078 | E58: -8442.278 | F58: 10 | G58: 0 | H58: 8 | I58: 346 | J58: =(PI()*(F58-G58)) -> 31.41592654 | K58: 2.89017341 | L58: 3.179190751 | M58: 28.23673578 | N58: =(500*2*PI()*((D58/L$47)+C58))^2 -> 7778174260 | O58: 275462940.2 | P58: 18946077.62 | Q58: 52.78137355
A59: C1/Cd | B59: 1.9657 | C59: -9.08288 | D59: 13606 | E59: 10899.30176 | F59: 43 | G59: 12 | I59: 13.887 | J59: =(PI()*(F59-G59)) -> 97.38937226 | K59: 72.00979333 | L59: 79.21077267 | M59: 18.1785996 | N59: =(500*2*PI()*((D59/L$47)+C59))^2 -> 1.295365637e+10 | O59: 712577242.5 | P59: 49010381.35 | Q59: 20.40384042
A60: NH | B60: 2.9149 | C60: 1.295 | D60: 4319 | E60: 4704.91 | F60: 73 | G60: 0 | I60: 5.25 | J60: =(PI()*(F60-G60)) -> 229.3362637 | K60: =1/((I60/1000)) -> 190.4761905 | L60: 209.5238095 | M60: 19.81245419 | N60: =(500*2*PI()*((D60/L$47)+C60))^2 -> 2426020631 | O60: 122449274 | P60: 8421943.972 | Q60: 118.737432
A61: C2/Ce C2A | B61: 2.3136 | C61: -12.12 | D61: 9730 | E61: 6118.24 | F61: 4.5 | I61: 101.9 | K61: =1/(PI()*(I61/1000)) -> 3.123747656 | L61: 3.436122422
A62: C3/Cc C3A | B62: 1.639 | C62: -5.49 | D62: 7958 | E62: 6321.98 | F62: 4 | I62: 303.69 | K62: 1.048140822 | L62: 1.152954904
A63: C2/Ca C2B | B63: 0.8469 | C63: -7.337 | D63: 6576 | E63: 4389.574 | F63: 2.5 | I63: 109.87 | K63: 2.897150143 | L63: 3.186865157
A64: C3/Cb C3B | B64: 1.05873 | C64: -8.5211 | D64: 5094 | E64: 2554.7122 | F64: 1.1 | I64: 208 | K64: 1.530335991 | L64: 1.68336959
Q66: =AVERAGE(Q50:Q53) -> 32.97556728
Q67: =STDEVA(Q50:Q53) -> 0.464327769
I73: 293
G74: HS*LS | I74: 0.06877904376
G75: wi | I75: 500
C76: 293 | D76: 250 | E76: 800 | G76: kex | H76: =I76*10^-9 -> 3.490712976e-08 | I76: 34.90712976
B78: C | C78: LW 500Mhz | D78: LW 250Mhz | E78: LW 800 Mhz
B79: 3000 | C79: =4*PI()*(1/(C$76^2))*(($B79*$I$75)^2)*$H$76*$I$74 -> 0.7907285421 | D79: =4*PI()*(1/(C$76^2))*(($B79*$D$76)^2)*$H$76*$I$74 -> 0.1976821355 | E79: =4*PI()*(1/(C$76^2))*(($B79*$E$76)^2)*$H$76*$I$74 -> 2.024265068
B80: =B79*1.1 -> 3300 | C80: =4*PI()*(1/(C$76^2))*(($B80*$I$75)^2)*$H$76*$I$74 -> 0.956781536 | D80: =4*PI()*(1/(C$76^2))*(($B80*$D$76)^2)*$H$76*$I$74 -> 0.239195384 | E80: =4*PI()*(1/(C$76^2))*(($B80*$E$76)^2)*$H$76*$I$74 -> 2.449360732
B81: =B80*1.1 -> 3630 | C81: 1.157705659 | D81: 0.2894264146 | E81: 2.963726486
B82: 3993 | C82: 1.400823847 | D82: 0.3502059617 | E82: 3.586109048
B83: 4392.3 | C83: 1.694996855 | D83: 0.4237492137 | E83: 4.339191948
B84: 4831.53 | C84: 2.050946194 | D84: 0.5127365485 | E84: 5.250422257
B85: 5314.683 | C85: 2.481644895 | D85: 0.6204112237 | E85: 6.353010931
B86: 5846.1513 | C86: 3.002790323 | D86: 0.7506975807 | E86: 7.687143226
B87: 6430.76643 | C87: 3.633376291 | D87: 0.9083440726 | E87: 9.301443304
B88: 7073.843073 | C88: 4.396385312 | D88: 1.099096328 | E88: 11.2547464
B89: 7781.22738 | C89: 5.319626227 | D89: 1.329906557 | E89: 13.61824314
B90: 8559.350118 | C90: 6.436747735 | D90: 1.609186934 | E90: 16.4780742
B91: 9415.28513 | C91: 7.788464759 | D91: 1.94711619 | E91: 19.93846978
B92: 10356.81364 | C92: 9.424042358 | D92: 2.35601059 | E92: 24.12554844
B93: 11392.49501 | C93: 11.40309125 | D93: 2.850772813 | E93: 29.19191361
B94: 12531.74451 | C94: 13.79774042 | D94: 3.449435104 | E94: 35.32221547
B95: 13784.91896 | C95: 16.6952659 | D95: 4.173816476 | E95: 42.73988072
B96: 15163.41085 | C96: 20.20127174 | D96: 5.050317936 | E96: 51.71525567
B97: 16679.75194 | C97: 24.44353881 | D97: 6.110884703 | E97: 62.57545936
B98: 18347.72713 | C98: 29.57668196 | D98: 7.39417049 | E98: 75.71630582
B99: 20182.49985 | C99: 35.78778517 | D99: 8.946946293 | E99: 91.61673004
B100: 22200.74983 | C100: 43.30322006 | D100: 10.82580501 | E100: 110.8562434
B101: 24420.82482 | C101: 52.39689627 | D101: 13.09922407 | E101: 134.1360545
B102: 26862.9073 | C102: 63.40024449 | D102: 15.85006112 | E102: 162.3046259
B103: 29549.19803 | C103: 76.71429583 | D103: 19.17857396 | E103: 196.3885973
B104: =B103*1.1 -> 32504.11783 | C104: 92.82429796 | D104: 23.20607449 | E104: 237.6302028
B105: 35754.52961 | C105: =4*PI()*(1/(C$76^2))*(($B105*$I$75)^2)*$H$76*$I$74 -> 112.3174005 | D105: 28.07935013 | E105: 287.5325453
B106: 39329.98257 | C106: 135.9040546 | D106: 33.97601366 | E106: 347.9143799
B107: 43262.98083 | C107: 164.4439061 | D107: 41.11097653 | E107: 420.9763996
B108: 47589.27892 | C108: 198.9771264 | D108: 49.7442816 | E108: 509.3814436
B109: 52348.20681 | C109: 240.7623229 | D109: 60.19058073 | E109: 616.3515467
B110: 57583.02749 | C110: 291.3224108 | D110: 72.83060269 | E110: 745.7853715
B111: 63341.33024 | C111: 352.500117 | D111: 88.12502925 | E111: 902.4002996
B112: 69675.46326 | C112: 426.5251416 | D112: 106.6312854 | E112: 1091.904362
K128: T | L128: 293
K129: dH | L129: 30832.39971
K130: dS | L130: 81.70604031
A131: 17grad(20grad real)
M133: T | N133: HS*LS
C134: daten der NMR auswertung freie Verfeinerung mitdH undDs aus Originklassicher Ausertung mit Durchschnitts C0 werten | O134: 293 | P134: 0.05265257257
C135: DH | D135: 30832 | E135: DS | F135: 81.7
B136: Proton | C136: dia | D136: C1 | E136: C0 | F136: C(298K) | G136: LW500 | H136: LW250 | I136: LW250calcd. | J136: HH | K136: HH nb | L136: T1(ms) | M136: R2+Rex | N136: R1 | O136: R2dip/curie | P136: Rex | Q136: dw^2 | R136: dw^2/Rex | S136: kex | T136: tex(ns)
B137: o-Phen | C137: 7.006 | D137: -24.3 | E137: 55795 | F137: =E137+D137*298 -> 48553.6 | G137: 212 | H137: 65 | I137: =((P137)/(4*PI()))+((N137)/(PI()))+J137+K137 -> 66.09310395 | J137: 5 | L137: 24.7 | M137: =(PI()*(G137-J137)) -> 650.3096793 | N137: =1/((L137/1000)) -> 40.48582996 | O137: =1.1*N137 -> 44.53441296 | P137: =M137-O137 -> 605.7752663 | Q137: =(500*2*PI()*((E137/O$134)+D137))^2 -> 2.723818778e+11 | R137: =Q137/P137 -> 449641794.4 | S137: =R137*$P$134 -> 23674797.21 | T137: =(10^9)/S137 -> 42.23901016
B138: Ch2/1 | C138: 4.55 | D138: -8.36 | E138: 44910 | F138: =E138+D138*298 -> 42418.72 | G138: 170 | H138: 55 | I138: =((P138)/(4*PI()))+((N138)/(PI()))+J138+K138 -> 58.97517623 | J138: 17 | L138: 61.95 | M138: 480.663676 | N138: 16.14205004 | O138: =1.1*N138 -> 17.75625504 | P138: =M138-O138 -> 462.907421 | Q138: 2.072693673e+11 | R138: =Q138/P138 -> 447755551 | S138: 23575481.64 | T138: =(10^9)/S138 -> 42.4169489
B139: meta mitte | C139: 8.439 | D139: -2.603 | E139: 20199 | F139: 19423.306 | G139: 40 | H139: 18 | I139: 17.36121653 | J139: 8.5 | L139: 234 | M139: 98.96016859 | N139: 4.273504274 | O139: 4.700854701 | P139: 94.25931389 | Q139: 4.343028014e+10 | R139: 460753196.2 | S139: 24259841.1 | T139: 41.22038541
B140: meta ende | C140: 7.3929 | D140: 0.846 | E140: 13054 | F140: 13306.108 | G140: 25 | H140: 16 | I140: 13.39682163 | J140: 8.5 | L140: 299 | M140: 51.83627878 | N140: 3.344481605 | O140: 3.678929766 | P140: 48.15734902 | Q140: 2.034184896e+10 | R140: 422403836.1 | S140: 22240648.63 | T140: 44.96271743
B141: CH2/2 | C141: 3.7755 | D141: -13.19 | E141: 17285 | F141: =E141+D141*298 -> 13354.38 | G141: 41 | H141: 32 | I141: =((P141)/(4*PI()))+((N141)/(PI()))+J141+K141 -> 35.73476919 | J141: 3 | K141: 16 | L141: 31.898 | M141: 119.3805208 | N141: =1/((L141/1000)) -> 31.3499279 | O141: =1.1*N141 -> 34.48492068 | P141: =M141-O141 -> 84.89560015 | Q141: 2.07057466e+10 | R141: =Q141/P141 -> 243896580.8 | S141: 12841782.42 | T141: =(10^9)/S141 -> 77.87081008
B142: para down | C142: 9.023 | D142: 5.489 | E142: -10078 | F142: =E142+D142*298 -> -8442.278 | G142: 10 | I142: =((P142)/(4*PI()))+((N142)/(PI()))+J142+K142 -> 11.03793629 | J142: 0 | K142: 8 | L142: 429 | M142: 31.41592654 | N142: =1/((L142/1000)) -> 2.331002331 | O142: =1.1*N142 -> 2.564102564 | P142: =M142-O142 -> 28.85182397 | Q142: 8247131489 | R142: =Q142/P142 -> 285844371.5 | S142: 15050441.51 | T142: =(10^9)/S142 -> 66.44323352
B143: C1/Cd | C143: 1.9657 | D143: -9.08288 | E143: 13606 | F143: =E143+D143*298 -> 10899.30176 | G143: 40 | H143: 36 | I143: =((P143)/(4*PI()))+((N143)/(PI()))+J143+K143 -> 32.08988471 | J143: 12 | L143: 17.63 | M143: 87.9645943 | N143: =1/((L143/1000)) -> 56.72149745 | O143: =1.1*N143 -> 62.39364719 | P143: =M143-O143 -> 25.57094711 | Q143: 1.37712547e+10 | R143: =Q143/P143 -> 538550826.7 | S143: 28356086.49 | T143: =(10^9)/S143 -> 35.26579736
B144: NH | C144: 2.9149 | D144: 1.295 | E144: 4319 | F144: =E144+D144*298 -> 4704.91 | G144: 56 | H144: 54 | I144: =((P144)/(4*PI()))+((N144)/(PI()))+J144+K144 -> 45.65633299 | J144: 0 | L144: 7.29 | M144: 175.9291886 | N144: =1/((L144/1000)) -> 137.1742112 | O144: =1.1*N144 -> 150.8916324 | P144: =M144-O144 -> 25.03755623 | Q144: 2537879226 | R144: =Q144/P144 -> 101362896.7 | S144: 5337017.275 | T144: =(10^9)/S144 -> 187.3705758
T146: =AVERAGE(T137:T140) -> 42.70976548
T147: =STDEVA(T137:T140) -> 1.591791194
F150: 48553.6 | G150: 605.7752663 | H150: =(PI()*H137)-N137-J137 -> 158.7176925 | J150: =G150/PI() -> 192.8242561 | K150: =H150/PI() -> 50.52141064
F151: 42418.72 | G151: 462.907421 | H151: =(PI()*H138)-N138-J138 -> 139.6455459 | J151: =G151/PI() -> 147.3480085 | K151: 44.45055782
F152: 19423.306 | G152: 94.25931389 | H152: 43.77516349 | J152: 30.00367148 | K152: 13.93406731
F153: 13306.108 | G153: 48.15734902 | H153: 38.42100085 | J153: 15.32896028 | K153: 12.22978441
K156: T | L156: 316.07
K157: dH | L157: 30832.39971
K158: dS | L158: 81.70604031
A159: 40grad(43grad real)
M161: T | N161: HS*LS
C162: daten der NMR auswertung freie Verfeinerung mitdH undDs aus Originklassicher Ausertung mit Durchschnitts C0 werten | O162: 316.07 | P162: 0.1127200167
C163: DH | D163: 30832 | E163: DS | F163: 81.7
B164: Proton | C164: dia | D164: C1 | E164: C0 | F164: C(298K) | G164: LW500 | J164: HH | K164: HH nb | L164: T1(ms) | M164: R2+Rex | N164: R1 | O164: R2dip/curie | P164: Rex | Q164: dw^2 | R164: dw^2/Rex | S164: kex | T164: tex(ns)
B165: o-Phen | C165: 7.006 | D165: -24.3 | E165: 55795 | F165: =E165+D165*298 -> 48553.6 | G165: 263 | H165: 333 | J165: 5 | L165: 11.8 | M165: =(PI()*(G165-J165)) -> 810.5309046 | N165: =1/((L165/1000)) -> 84.74576271 | O165: =1.1*N165 -> 93.22033898 | P165: =M165-O165 -> 717.3105656 | Q165: =(500*2*PI()*((E165/O$162)+D165))^2 -> 2.287099866e+11 | R165: =Q165/P165 -> 318843744.4 | S165: =R165*$P$162 -> 35940072.19 | T165: =(10^9)/S165 -> 27.82409547
B166: Ch2/1 | C166: 4.55 | D166: -8.36 | E166: 44910 | F166: =E166+D166*298 -> 42418.72 | G166: 192 | H166: 247 | J166: 17 | L166: 32.6 | M166: =(PI()*(G166-J166)) -> 549.7787144 | N166: =1/((L166/1000)) -> 30.67484663 | O166: =1.1*N166 -> 33.74233129 | P166: =M166-O166 -> 516.0363831 | Q166: =(500*2*PI()*((E166/O$162)+D166))^2 -> 1.765019453e+11 | R166: =Q166/P166 -> 342033916.8 | S166: =R166*$P$162 -> 38554068.81 | T166: =(10^9)/S166 -> 25.9375996
B167: meta mitte | C167: 8.439 | D167: -2.603 | E167: 20199 | F167: 19423.306 | G167: 51 | J167: 8.5 | L167: 139 | M167: =(PI()*(G167-J167)) -> 133.5176878 | N167: 7.194244604 | O167: 7.913669065 | P167: 125.6040187 | Q167: 3.709142667e+10 | R167: 295304458 | S167: 33286723.44 | T167: 30.04200764
B168: meta ende | C168: 7.3929 | D168: 0.846 | E168: 13054 | F168: 13306.108 | G168: 31 | J168: 8.5 | L168: 168 | M168: 70.68583471 | N168: 5.952380952 | O168: 6.547619048 | P168: 64.13821566 | Q168: 1.75320467e+10 | R168: 273347902.2 | S168: 30811780.11 | T168: 32.45511933
B169: CH2/2 | C169: 3.7755 | D169: -13.19 | E169: 17285 | F169: =E169+D169*298 -> 13354.38 | G169: 50 | J169: 3 | K169: 16 | L169: 16.4 | M169: 147.6548547 | N169: 60.97560976 | O169: 67.07317073 | P169: 80.58168399 | Q169: 1.699567583e+10 | R169: 210912393.4 | S169: 23774048.5 | T169: =(10^9)/S169 -> 42.06267182
B170: para down | C170: 9.023 | D170: 5.489 | E170: -10078 | F170: =E170+D170*298 -> -8442.278 | G170: 12 | J170: 0 | K170: 8 | L170: 247 | M170: 37.69911184 | N170: 4.048582996 | O170: 4.453441296 | P170: 33.24567055 | Q170: 6876813301 | R170: 206848386.2 | S170: 23315953.55 | T170: =(10^9)/S170 -> 42.88908871
B171: C1/Cd | C171: 1.9657 | D171: -9.08288 | E171: 13606 | F171: =E171+D171*298 -> 10899.30176 | G171: 60 | J171: 12 | L171: 9.32 | M171: 150.7964474 | N171: 107.2961373 | O171: 118.0257511 | P171: 32.7706963 | Q171: 1.138548088e+10 | R171: 347428714.1 | S171: 39162170.46 | T171: =(10^9)/S171 -> 25.53484621
B172: NH | C172: 2.9149 | D172: 1.295 | E172: 4319 | F172: =E172+D172*298 -> 4704.91 | G172: 100 | J172: 0 | L172: 3.72 | M172: 314.1592654 | N172: 268.8172043 | O172: 295.6989247 | P172: 18.46034063 | Q172: 2208743052 | R172: 119648011.7 | S172: 13486725.88 | T172: =(10^9)/S172 -> 74.14698042
T174: =AVERAGE(T165:T168) -> 29.06470551
T175: =STDEVA(T165:T168) -> 2.814719045

Sheet T1 Zeiten und kex
AF1: T | AG1: 293
AF2: dH | AG2: 30832.39971
AF3: dS | AG3: 81.70604031
P4: FeH | Q4: Zn-H
B5: Proton | C5: Verschiebung 25 grad 500Mhz | D5: T1 in ms | E5: Lw aus T1 | F5: Verschiebung 17 grad 500Mhz | G5: T1 in ms | H5: Lw aus T1 | I5: LW250 | J5: LW500 | K5: HH Kooplung | L5: dLW T1/T2 | M5: LW 250 aus LW 500 | N5: dFe-H | O5: dZn-H | P5: 1/r6 | Q5: 1/r6 | R5: Verschiebung 40 grad 500Mhz | S5: T1 ms | W5: 1/r6 | X5: 17grad | Y5: 25grad | Z5: 40grad | AC5: iso | AD5: extra | AE5: dLW | AG5: dw^2 | AH5: HS | AI5: LS | AJ5: HS*LS | AK5: Pi*dLW | AL5: tau 17grad (20 grad real)
B6: o-Phen | C6: 19.211 | D6: 18.12 | E6: =1000/(PI()*D6) -> 17.56677076 | F6: 16.145 | G6: 24.7 | H6: =1000/(PI()*G6) -> 12.88703993 | I6: 65 | J6: 212 | K6: 5 | L6: =J6-H6-K6 -> 194.1129601 | M6: =L6/4+H6+K6 -> 66.41527994 | N6: 3.21 | O6: 3.404 | P6: =1/(N6^6) -> 0.0009140496897 | Q6: =1/(O6^6) -> 0.0006427804976 | R6: 26.6 | S6: 11.8 | W6: =Q6 -> 0.0006427804976 | X6: =1/G6 -> 0.04048582996 | Y6: =1/D6 -> 0.05518763797 | Z6: =1/S6 -> 0.08474576271 | AC6: 55795.50077 | AD6: -24.36266667 | AE6: =L6 -> 194.1129601 | AG6: =((AC6/293+AD6)*2*PI()*500)^2 -> 2.721820219e+11 | AH6: =HSfraction_aus_T_dH_dS(AG$1,AG$2,AG$3) -> 0.05576196985 | AI6: =1-AH6 -> 0.9442380301 | AJ6: =AI6*AH6 -> 0.05265257257 | AK6: =PI()*AE6 -> 609.8238493 | AL6: =(AK6/(AJ6*AG6))*10^9 -> 42.55252873
B7: Ch2/1 | C7: 15.225 | D7: 46.15 | E7: =1000/(PI()*D7) -> 6.897288975 | F7: 12.512 | G7: 61.95 | H7: =1000/(PI()*G7) -> 5.138174111 | I7: 55 | J7: 170 | K7: 17 | L7: =J7-H7-K7 -> 147.8618259 | M7: =L7/4+H7+K7 -> 59.10363058 | N7: 3.74 | O7: 3.839 | P7: =1/(N7^6) -> 0.0003654015513 | Q7: =1/(O7^6) -> 0.0003123858311 | R7: 21.8 | S7: 32.6 | W7: =Q7 -> 0.0003123858311 | X7: =1/G7 -> 0.01614205004 | Y7: =1/D7 -> 0.02166847237 | Z7: =1/S7 -> 0.03067484663 | AC7: 44910.41191 | AD7: -8.362666667 | AE7: =L7 -> 147.8618259 | AG7: =((AC7/293+AD7)*2*PI()*500)^2 -> 2.072657607e+11 | AH7: =HSfraction_aus_T_dH_dS(AG$1,AG$2,AG$3) -> 0.05576196985 | AI7: =1-AH7 -> 0.9442380301 | AJ7: =AI7*AH7 -> 0.05265257257 | AK7: =PI()*AE7 -> 464.521626 | AL7: =(AK7/(AJ7*AG7))*10^9 -> 42.56560176
B8: meta mitte | C8: 13.262 | D8: 191 | E8: 1.666543907 | F8: 12.04 | G8: 234 | H8: 1.360298659 | I8: 18 | J8: 40 | K8: 9 | L8: 29.63970134 | M8: 17.77022399 | N8: 4.88 | O8: 4.98 | P8: =1/(N8^6) -> 7.404249897e-05 | Q8: 6.555773546e-05 | R8: 16.33 | S8: 139 | W8: 6.555773546e-05 | X8: 0.004273504274 | Y8: 0.005235602094 | Z8: 0.007194244604 | AC8: 20199.12068 | AD8: -2.602666667 | AE8: 29.63970134 | AG8: 4.343125594e+10 | AH8: 0.05576196985 | AI8: 0.9442380301 | AJ8: 0.05265257257 | AK8: 93.11586799 | AL8: 40.71943207
B9: meta ende | C9: 10.676 | D9: 223 | E9: 1.427398593 | F9: 9.835 | G9: 299 | H9: 1.064581559 | I9: 16 | J9: 25 | K9: 9 | L9: 14.93541844 | M9: 13.79843617 | N9: 5.09 | O9: 5.35 | P9: =1/(N9^6) -> 5.750337114e-05 | Q9: 4.264590232e-05 | R9: 12.78 | S9: 168 | W9: 4.264590232e-05 | X9: 0.003344481605 | Y9: 0.004484304933 | Z9: 0.005952380952 | AC9: 13054.30889 | AD9: 0.8462222222 | AE9: 14.93541844 | AG9: 2.034299287e+10 | AH9: 0.05576196985 | AI9: 0.9442380301 | AJ9: 0.05265257257 | AK9: 46.92100085 | AL9: 43.80592196
B10: para | C10: 9.523 | D10: 451 | E10: 0.7057868873 | F10: 9.26 | G10: 499 | H10: 0.6378955635 | I10: 4 | J10: 2 | O10: 5.98 | P10: =1/(O10^6) -> 2.186718585e-05 | Q10: 2.186718585e-05 | R10: 10.2 | S10: 325 | W10: 2.186718585e-05 | X10: 0.002004008016 | Y10: 0.0022172949 | Z10: 0.003076923077 | AL10: =AVERAGE(AL6:AL9) -> 42.41087113
B11: phen a | C11: 9.234 | D11: 475 | E11: 0.6701260762 | F11: 9.19 | G11: 550 | H11: 0.5787452476 | I11: 4 | J11: 2 | O11: 6.25 | P11: =1/(O11^6) -> 1.6777216e-05 | Q11: 1.6777216e-05 | R11: 10.41 | S11: 366 | W11: 1.6777216e-05 | X11: 0.001818181818 | Y11: 0.002105263158 | Z11: 0.002732240437
B12: phen b | C12: 9.217 | D12: 482 | E12: 0.6603939547 | F12: 9.037 | G12: 543 | H12: 0.5862060519 | I12: 4 | J12: 2 | O12: 6.25 | Q12: 1.6777216e-05 | R12: 9.79 | S12: 362 | W12: 1.6777216e-05 | X12: 0.001841620626 | Y12: 0.002074688797 | Z12: 0.002762430939
B13: CH2/2 | C13: 7.057 | D13: 25.08 | E13: 12.69178175 | F13: 6.24 | G13: 31.898 | H13: 9.97899198 | I13: 32 | J13: 41 | K13: 17 | L13: 14.02100802 | M13: 30.48424399 | N13: 3.24 | O13: 3.429 | P13: =1/(N13^6) -> 0.0008644302152 | Q13: 0.0006151699168 | R13: 9.12 | S13: 16.4 | W13: 0.0006151699168 | X13: 0.0313499279 | Y13: 0.03987240829 | Z13: 0.06097560976 | AC13: 11342 | AD13: 6.31 | AE13: 19.30821825 | AG13: =((AC13/293+AD13)*2*PI()*500)^2 -> 2.000362716e+10 | AH13: =HSfraction_aus_T_dH_dS(293,AG$2,AG$3) -> 0.05576196985 | AI13: 0.9442380301 | AJ13: =AI13*AH13 -> 0.05265257257 | AK13: =PI()*AE13 -> 60.65855662 | AL13: =(AK13/(AJ13*AG13))*10^9 -> 57.59220751
B14: para down | C14: 6.813 | D14: 346 | E14: 0.9199707693 | F14: 7.433 | G14: 429 | H14: 0.7419810867 | J14: 10 | O14: 5.73 | Q14: 2.825350084e-05 | R14: 5.62 | S14: 247 | W14: 2.825350084e-05 | X14: 0.002331002331 | Y14: 0.00289017341 | Z14: 0.004048582996 | AC14: -10638.78071 | AD14: 6.522450635 | AE14: 9.180029231 | AG14: =((AC14/293+AD14)*2*PI()*500)^2 -> 8757182301 | AH14: =HSfraction_aus_T_dH_dS(293,AG$2,AG$3) -> 0.05576196985 | AI14: =1-AH14 -> 0.9442380301 | AJ14: =AI14*AH14 -> 0.05265257257 | AK14: =PI()*AE14 -> 28.83991239 | AL14: 62.54749927
B15: C1/Cd | C15: 4.62 | D15: 13.887 | E15: 22.92142912 | F15: 3.95 | G15: 17.63 | H15: 18.0550134 | I15: 36 | J15: 40 | K15: 10 | L15: 11.9449866 | M15: 31.04126005 | N15: 3.11 | O15: 3.05 | P15: =1/(N15^6) -> 0.00110519183 | Q15: 0.001242226998 | R15: 6.25 | S15: 9.32 | W15: 0.001242226998 | X15: 0.05672149745 | Y15: 0.07200979333 | Z15: 0.1072961373 | AC15: 12310.55262 | AD15: -4.922882698 | AE15: 10.07857088 | AG15: 1.357924398e+10 | AH15: 0.05576196985 | AI15: 0.9442380301 | AJ15: 0.05265257257 | AK15: 31.66276424 | AL15: 44.2846932
B16: NH | C16: 4.01 | D16: 5.25 | E16: 60.63045451 | F16: 3.74 | G16: 7.29 | H16: 43.66390757 | I16: 54 | J16: 56 | L16: 12.33609243 | M16: 46.74793068 | O16: 2.685 | Q16: 0.002668912033 | R16: 4.85 | S16: 3.72 | W16: 0.002668912033 | X16: 0.1371742112 | Y16: 0.1904761905 | Z16: 0.2688172043 | AC16: 4319 | AD16: 1.295 | AE16: 5.369545489 | AG16: 2537879226 | AH16: 0.05576196985 | AI16: 0.9442380301 | AJ16: 0.05265257257 | AK16: 16.86892466 | AL16: 126.2399612
B17: C2/Ce C2A | C17: 3.763 | D17: 101.9 | E17: 3.123747656 | F17: 3.497 | G17: 127 | H17: 2.506377057 | O17: 4.7 | Q17: 9.277113124e-05 | R17: 4.7092 | S17: 74 | W17: 9.277113124e-05 | X17: 0.007874015748 | Y17: 0.009813542689 | Z17: 0.01351351351
B18: C3/Cc C3A | C18: 3.15 | D18: 303.69 | E18: 1.048140822 | F18: 2.852 | G18: 315 | H18: 1.010507575 | O18: 6.3 | Q18: 1.59939857e-05 | R18: 4.105 | S18: 272 | W18: 1.59939857e-05 | X18: 0.003174603175 | Y18: 0.003292831506 | Z18: 0.003676470588
B19: C2/Ca C2B | C19: 1.87 | D19: 109.87 | E19: 2.897150143 | F19: 1.0728 | G19: 118 | H19: 2.697541408 | O19: 4.7 | Q19: 9.277113124e-05 | R19: 2.512 | S19: 65 | W19: 9.277113124e-05 | X19: 0.008474576271 | Y19: 0.009101665605 | Z19: 0.01538461538
B20: C3/Cb C3B | C20: 1.605 | D20: 208 | E20: 1.530335991 | F20: 0.8846 | G20: 204 | H20: 1.560342579 | O20: 5.5 | Q20: 3.612633152e-05 | W20: 3.612633152e-05 | X20: 0.004901960784 | Y20: 0.004807692308

Sheet T1 Zeiten und kex 25
R1: Werte wurden mit Grenze 0 bis 1 und durchschnittlichen isowerten erhalten
Q2: T | R2: 300.28
Q3: dH | R3: 30832.39971 | U3: 30400
Q4: dS | R4: 81.70604031 | U4: 80.333
B5: Proton | C5: Verschiebung 25 grad 500Mhz | D5: T1 in ms | E5: Lw aus T1 | G5: LW500 | H5: HH Kooplung | I5: dLW T1/T2
B6: o-Phen | C6: 19.211 | D6: 18.12 | E6: =1000/(PI()*D6) -> 17.56677076 | G6: 214 | H6: 3 | I6: =G6-H6-E6 -> 193.4332292 | K6: =1/(PI()*G6) -> 0.001487429375 | N6: iso | O6: extra | P6: dLW | R6: dw^2 | S6: HS | T6: LS | U6: HS*LS | V6: Pi*dLW | W6: tau RT | Y6: vgl alt | AA6: T1 HS T1 Zeit die sich für den reinen HS Komplex ergibt
B7: Ch2/1 | C7: 15.225 | D7: 46.15 | E7: =1000/(PI()*D7) -> 6.897288975 | G7: 165 | H7: 16 | I7: =G7-H7-E7 -> 142.102711 | K7: =1/(PI()*G7) -> 0.001929150825 | N7: 55795.50077 | O7: -24.36266667 | P7: =I6 -> 193.4332292 | R7: =((N7/$R$2+O7)*2*PI()*500)^2 -> 2.572586519e+11 | S7: =HSfraction_aus_T_dH_dS(R$2,R$3,R$4) -> 0.07429945238 | T7: =1-S7 -> 0.9257005476 | U7: =T7*S7 -> 0.06877904376 | V7: =PI()*P7 -> 607.6884119 | W7: =(V7/(U7*R7))*10^9 -> 34.34431288 | Y7: 34.44624837 | AA7: =E6/S7 -> 236.4320355
B8: meta mitte | C8: 13.262 | D8: 191 | E8: 1.666543907 | G8: 40 | H8: 7 | I8: =G8-H8-E8 -> 31.33345609 | K8: 0.007957747155 | N8: 44910.41191 | O8: -8.362666667 | P8: =I7 -> 142.102711 | R8: =((N8/$R$2+O8)*2*PI()*500)^2 -> 1.9677218e+11 | S8: =HSfraction_aus_T_dH_dS(R$2,R$3,R$4) -> 0.07429945238 | T8: =1-S8 -> 0.9257005476 | U8: =T8*S8 -> 0.06877904376 | V8: =PI()*P8 -> 446.428833 | W8: =(V8/(U8*R8))*10^9 -> 32.98620894 | Y8: 34.0351953 | AA8: =E7/S8 -> 92.83095303
B9: meta ende | C9: 10.676 | D9: 223 | E9: 1.427398593 | G9: 24 | H9: 7 | I9: 15.57260141 | K9: 0.01326291192 | N9: 20199.12068 | O9: -2.602666667 | P9: 31.33345609 | R9: =((N9/$R$2+O9)*2*PI()*500)^2 -> 4.12703043e+10 | S9: =HSfraction_aus_T_dH_dS(R$2,R$3,R$4) -> 0.07429945238 | T9: 0.9257005476 | U9: 0.06877904376 | V9: 98.43695547 | W9: =(V9/(U9*R9))*10^9 -> 34.67882455 | Y9: 34.7857854 | AA9: 22.43009677
B10: para | C10: 9.523 | D10: 451 | E10: 0.7057868873 | G10: 4 | N10: 13054.30889 | O10: 0.8462222222 | P10: 15.57260141 | R10: =((N10/$R$2+O10)*2*PI()*500)^2 -> 1.938650128e+10 | S10: =HSfraction_aus_T_dH_dS(R$2,R$3,R$4) -> 0.07429945238 | T10: 0.9257005476 | U10: 0.06877904376 | V10: 48.92277018 | W10: 36.69065532 | Y10: 36.83568781 | AA10: 19.21142817
B11: phen a | C11: 9.234 | D11: 475 | E11: 0.6701260762 | G11: 4 | W11: =AVERAGE(W7:W10) -> 34.67500042 | Y11: 35.02572922
B12: phen b | C12: 9.217 | D12: 482 | E12: 0.6603939547 | G12: 4
B13: CH2/2 | C13: 7.057 | D13: 25.08 | E13: 12.69178175 | G13: 32 | H13: 0 | I13: =G13-H13-E13 -> 19.30821825 | K13: 0.009947183943 | N13: 11342 | O13: 6.31 | P13: =I13 -> 19.30821825 | R13: =((N13/$R$2+O13)*2*PI()*500)^2 -> 1.917832908e+10 | S13: =HSfraction_aus_T_dH_dS(R$2,R$3,R$4) -> 0.07429945238 | T13: =1-S13 -> 0.9257005476 | U13: =T13*S13 -> 0.06877904376 | V13: =PI()*P13 -> 60.65855662 | W13: =(V13/(U13*R13))*10^9 -> 45.98595099 | Y13: 43.30656095 | AA13: =E13/S13 -> 170.8193175
B14: para down | C14: 6.813 | D14: 346 | E14: 0.9199707693 | G14: 10.1 | H14: 0 | I14: 9.180029231 | K14: 0.03151583032 | N14: -10638.78071 | O14: 6.522450635 | P14: =I14 -> 9.180029231 | R14: =((N14/$R$2+O14)*2*PI()*500)^2 -> 8247234052 | S14: =HSfraction_aus_T_dH_dS(R$2,R$3,R$4) -> 0.07429945238 | T14: =1-S14 -> 0.9257005476 | U14: =T14*S14 -> 0.06877904376 | V14: =PI()*P14 -> 28.83991239 | W14: =(V14/(U14*R14))*10^9 -> 50.84280277 | Y14: 49.94560857 | AA14: =E14/S14 -> 12.38193203
B15: C1/Cd | C15: 4.62 | D15: 13.887 | E15: 22.92142912 | G15: 43 | H15: 10 | I15: 10.07857088 | K15: 0.007402555493 | N15: 12310.55262 | O15: -4.922882698 | P15: =I15 -> 10.07857088 | R15: =((N15/$R$2+O15)*2*PI()*500)^2 -> 1.284366719e+10 | S15: =HSfraction_aus_T_dH_dS(R$2,R$3,R$4) -> 0.07429945238 | T15: 0.9257005476 | U15: 0.06877904376 | V15: =PI()*P15 -> 31.66276424 | W15: =(V15/(U15*R15))*10^9 -> 35.84294206 | Y15: 60.32271298 | AA15: =E15/S15 -> 308.5006468
B16: NH | C16: 4.01 | D16: 5.25 | E16: 60.63045451 | G16: 76 | H16: 10 | I16: =G16-H16-E16 -> 5.369545489 | K16: 0.004188287976 | N16: 4319 | O16: 1.295 | P16: =I16 -> 5.369545489 | R16: =((N16/$R$2+O16)*2*PI()*500)^2 -> 2426020631 | S16: =HSfraction_aus_T_dH_dS(R$2,R$3,R$4) -> 0.07429945238 | T16: =1-S16 -> 0.9257005476 | U16: =T16*S16 -> 0.06877904376 | V16: =PI()*P16 -> 16.86892466 | W16: =(V16/(U16*R16))*10^9 -> 101.0966525 | AA16: =E16/S16 -> 816.0282824
B17: C2/Ce C2A | C17: 3.763 | D17: 101.9 | E17: 3.123747656 | G17: 12 | K17: 0.02652582385
B18: C3/Cc C3A | C18: 3.15 | D18: 303.69 | E18: 1.048140822 | G18: 2.92
B19: C2/Ca C2B | C19: 1.87 | D19: 109.87 | E19: 2.897150143
B20: C3/Cb C3B | C20: 1.605 | D20: 208 | E20: 1.530335991

Sheet example
B1: radius | C1: 8
B2: Fe-H | C2: 3.35 | X2: textR1
B3: magnet | C3: 500 | X3: 313.15 | Y3: 298.15 | Z3: 288.15 | AA3: 253.15 | AB3: 233.15 | AC3: 213.15 | AD3: 193.15 | AE3: 183.15
W4: H1 | X4: 949.6676163 | Y4: 1057.082452 | Z4: 1158.748552
A5: H1 | W5: H7 | Y5: 85.83690987 | Z5: 111.1111111 | AA5: 129.8701299 | AB5: 166.6666667 | AC5: 208.3333333 | AD5: 222.2222222 | AE5: 222.2222222
A6: T | B6: 173 | E6: ts | F6: =H35 -> 4.7e-12 | G6: R1 | H6: 2454.085982 | I6: R2 | J6: 11449.9736 | K6: =J6/H6 -> 4.66567744 | L6: CR1 | M6: 393.058248 | N6: CR2 | O6: 9056.879469 | W6: H10/H8 | X6: 68.25938567 | Y6: 84.38818565 | Z6: 86.95652174 | AA6: 125 | AB6: 156.25 | AC6: 185.1851852 | AD6: 208.3333333 | AE6: 208.3333333
A7: T | B7: =B6+10 -> 183 | E7: ts | F7: =H36 -> 4.6e-12 | G7: R1 | H7: 2462.428864 | I7: R2 | J7: 8723.626084 | K7: =J7/H7 -> 3.542691612 | L7: CR1 | M7: 443.1386667 | N7: CR2 | O7: 6379.493475 | W7: H10/H8 | X7: 51.73305742 | Y7: 64.5994832 | Z7: 67.11409396 | AA7: 94.33962264 | AB7: 114.9425287 | AC7: 135.1351351 | AD7: 142.8571429 | AE7: 136.9863014
A8: T | B8: =B7+10 -> 193 | E8: ts | F8: 4.6e-12 | G8: R1 | H8: 2514.546955 | I8: R2 | J8: 6912.379869 | K8: 2.748956369 | L8: CR1 | M8: 495.2567577 | N8: CR2 | O8: 4568.247261 | W8: H2 | X8: 53.85029618 | Y8: 66.66666667 | Z8: 75.18796992 | AA8: 96.15384615 | AB8: 119.047619 | AC8: 142.8571429 | AD8: 151.5151515 | AE8: 147.0588235
A9: T | B9: 203 | E9: ts | F9: 4.2e-12 | G9: R1 | H9: 2396.15383 | I9: R2 | J9: 5493.709288 | K9: 2.292719782 | L9: CR1 | M9: 543.3446838 | N9: CR2 | O9: 3344.982303 | W9: H4/5 | X9: 15.15151515 | Y9: 17.59014952 | Z9: 17.92114695 | AA9: 27.02702703 | AB9: 33.33333333 | AC9: 41.66666667 | AD9: 45.45454545 | AE9: 45.45454545
A10: T | B10: 213 | E10: ts | F10: 4e-12 | G10: R1 | H10: 2350.817519 | I10: R2 | J10: 4561.053406 | K10: 1.940198832 | L10: CR1 | M10: 580.9193751 | N10: CR2 | O10: 2509.720471 | W10: H3 | X10: 20.40816327 | Y10: 23.60160491 | Z10: 23.80952381 | AA10: 35.71428571 | AB10: 43.47826087 | AC10: 45.45454545 | AD10: 45.45454545 | AE10: 47.61904762
A11: T | B11: 223 | E11: ts | F11: 3.4e-12 | G11: R1 | H11: 2124.470285 | I11: R2 | J11: 3690.511632 | K11: 1.737144388 | L11: CR1 | M11: 601.5431014 | N11: CR2 | O11: 1929.71459 | W11: H4/5 | X11: 16.94915254 | Y11: 19.52743605 | Z11: 19.60784314 | AA11: 29.41176471 | AB11: 37.03703704 | AC11: 45.45454545 | AD11: 47.61904762 | AE11: 45.45454545
A12: T | B12: 233 | E12: ts | F12: 2.9e-12 | G12: R1 | H12: 1921.177554 | I12: R2 | J12: 3038.38767 | K12: 1.581523615 | L12: CR1 | M12: 601.2040777 | N12: CR2 | O12: 1517.042161 | W12: H9 | X12: 24.3902439 | Y12: 28.8184438 | Z12: 29.41176471 | AA12: 35.71428571 | AB12: 43.47826087 | AC12: 66.66666667 | AD12: 72.46376812 | AE12: 71.42857143
A13: T | B13: 243 | E13: ts | F13: 2.4e-12 | G13: R1 | H13: 1701.233744 | I13: R2 | J13: 2500.218771 | K13: 1.469650352 | L13: CR1 | M13: 580.0918474 | N13: CR2 | O13: 1214.489237 | W13: H6 | Y13: 36.57778265
A14: T | B14: 253 | E14: ts | F14: 1.9e-12 | G14: R1 | H14: 1471.457673 | I14: R2 | J14: 2042.168089 | K14: 1.387853776 | L14: CR1 | M14: 542.3855063 | N14: CR2 | O14: 985.7691569
A15: T | B15: =B14+10 -> 263 | E15: ts | F15: 1.6e-12 | G15: R1 | H15: 1313.238147 | I15: R2 | J15: 1731.794789 | K15: 1.318721051 | L15: CR1 | M15: 494.2554525 | N15: CR2 | O15: 808.2073188 | Y15: linewidths
A16: T | B16: 273 | E16: ts | F16: 1.4e-12 | G16: R1 | H16: 1190.296455 | I16: R2 | J16: 1505.365023 | K16: 1.26469756 | L16: CR1 | M16: 441.6229565 | N16: CR2 | O16: 667.4541251
A17: T | B17: 283 | E17: ts | F17: 1.2e-12 | G17: R1 | H17: 1070.373713 | I17: R2 | J17: 1309.202271 | K17: 1.22312633 | L17: CR1 | M17: 388.9030044 | N17: CR2 | O17: 554.0828183 | X17: K | Y17: H6 | Z17: H9 | AA17: H4/5 | AB17: H3 | AC17: H4/5 | AD17: H2 | AE17: H10/8 | AF17: H10/8 | AG17: H7 | AH17: H1 | AI17: H7
A18: T | B18: 293 | E18: ts | F18: 1e-12 | G18: R1 | H18: 956.5540049 | I18: R2 | J18: 1137.178991 | K18: 1.188828843 | L18: CR1 | M18: 338.8328808 | N18: CR2 | O18: 461.6439138 | X18: 183.15 | Y18: 428 | Z18: 336 | AA18: 407 | AB18: 434 | AC18: 462 | AD18: 511 | AE18: 516 | AF18: 600 | AG18: 627 | AH18: 4081 | AI18: 627
A19: T | B19: 303 | E19: ts | F19: 8e-13 | G19: R1 | H19: 849.5055888 | I19: R2 | J19: 984.0348043 | K19: 1.158361778 | L19: CR1 | M19: 292.8694683 | N19: CR2 | O19: 385.6094156 | X19: 193.15 | Y19: 770 | Z19: 308 | AA19: 564 | AB19: 600 | AC19: 600 | AD19: 914 | AE19: 995 | AF19: 1005 | AG19: 970 | AH19: 2866 | AI19: 970
A20: T | B20: 313 | E20: ts | F20: 6.5e-13 | G20: R1 | H20: 761.5673002 | I20: R2 | J20: 862.493454 | K20: 1.132524274 | L20: CR1 | M20: 251.6803217 | N20: CR2 | O20: 322.7686743 | X20: 213.15 | Y20: 672 | Z20: 83 | AA20: 143 | AB20: 150 | AC20: 150 | AD20: 1406 | AE20: 1778 | AF20: 1868 | AG20: 2186 | AH20: 4245 | AI20: 2186
A21: T | B21: 323 | E21: ts | F21: 6e-13 | G21: R1 | H21: 708.6597829 | I21: R2 | J21: 789.9209427 | K21: 1.11466879 | L21: CR1 | M21: 215.5096813 | N21: CR2 | O21: 270.8344089 | X21: 233.15 | Y21: 113 | Z21: 28 | AA21: 40 | AB21: 48 | AC21: 46 | AD21: 238 | AE21: 281 | AF21: 311 | AG21: 565 | AH21: 2955 | AI21: 565
A22: T | B22: 333 | E22: ts | F22: 5e-13 | G22: R1 | H22: 640.0694442 | I22: R2 | J22: 702.2570589 | K22: 1.097157606 | L22: CR1 | M22: 184.3853814 | N22: CR2 | O22: 228.154091 | X22: 253.15 | Y22: 43.74 | Z22: 18 | AA22: 25 | AB22: 26 | AC22: 21 | AD22: 73 | AE22: 79 | AF22: 93 | AG22: 138 | AH22: 953.66 | AI22: 138
A23: T | B23: 343 | E23: ts | F23: 4.5e-13 | G23: R1 | H23: 591.9735611 | I23: R2 | J23: 642.1418796 | K23: 1.084747566 | L23: CR1 | M23: 158.2077275 | N23: CR2 | O23: 193.4883684 | X23: 273.15 | Y23: 31 | Z23: 16 | AA23: 22 | AB23: 21 | AC23: 17 | AD23: 47 | AE23: 49 | AF23: 59 | AG23: 77 | AH23: 600 | AI23: 77
S24: 313.15 | T24: 1.10254809e-54 | X24: 298.15 | Y24: 20 | AA24: 15 | AB24: 15 | AC24: 14 | AD24: 30 | AE24: 30 | AF24: 37.54 | AG24: 42.329 | AH24: 406.72 | AI24: 42.329
S25: 298.15 | T25: 1.3815442e-54 | X25: 323.15 | Y25: 18 | AA25: 14 | AB25: 13 | AC25: 13 | AD25: 26 | AE25: 25 | AF25: 32 | AG25: 34 | AH25: 340 | AI25: 34
S26: 288.15 | T26: 1.54989387e-54
S27: 253.15 | T27: 2.03418601e-54 | W27: R2_ | X27: =Y17 -> H6 | Y27: =Z17 -> H9 | Z27: H4/5 | AA27: H3 | AB27: H4/5 | AC27: H2 | AD27: H10/8 | AE27: H10/8 | AF27: H7 | AG27: H1 | AH27: H7
S28: 233.15 | T28: 2.54244764e-54 | W28: =X18 -> 183.15 | X28: =Y18*PI() -> 1344.601656 | Y28: =Z18*PI() -> 1055.575132 | Z28: 1278.62821 | AA28: 1363.451212 | AB28: 1451.415806 | AC28: 1605.353846 | AD28: 1621.061809 | AE28: 1884.955592 | AF28: 1969.778594 | AG28: 12820.83962 | AH28: 1969.778594
S29: 213.15 | T29: 3.08662448e-54 | W29: 193.15 | X29: =Y19*PI() -> 2419.026343 | Y29: 967.6105373 | Z29: 1771.858257 | AA29: 1884.955592 | AB29: 1884.955592 | AC29: 2871.415685 | AD29: 3125.88469 | AE29: 3157.300617 | AF29: 3047.344874 | AG29: 9003.804545 | AH29: 3047.344874
A30: H2 | S30: 193.15 | T30: 3.328007e-54 | W30: 213.15 | X30: =Y20*PI() -> 2111.150263 | Y30: 260.7521902 | Z30: 449.2477495 | AA30: 471.238898 | AB30: 471.238898 | AC30: 4417.079271 | AD30: 5585.751738 | AE30: 5868.495077 | AF30: 6867.521541 | AG30: 13336.06081 | AH30: 6867.521541
B31: Fe-H | C31: 5.223 | S31: 183.15 | T31: 3.2884344e-54 | W31: 233.15 | X31: =Y21*PI() -> 354.9999699 | Y31: 87.9645943 | Z31: 125.6637061 | AA31: 150.7964474 | AB31: 144.5132621 | AC31: 747.6990516 | AD31: 882.7875357 | AE31: 977.0353153 | AF31: 1774.999849 | AG31: 9283.406291 | AH31: 1774.999849
W32: 253.15 | X32: =Y22*PI() -> 137.4132627 | Y32: 56.54866776 | Z32: 78.53981634 | AA32: 81.68140899 | AB32: 65.97344573 | AC32: 229.3362637 | AD32: 248.1858196 | AE32: 292.1681168 | AF32: 433.5397862 | AG32: 2996.01125 | AH32: 433.5397862
W33: 273.15 | X33: =Y23*PI() -> 97.38937226 | Y33: 50.26548246 | Z33: 69.11503838 | AA33: 65.97344573 | AB33: 53.40707511 | AC33: 147.6548547 | AD33: 153.93804 | AE33: 185.3539666 | AF33: 241.9026343 | AG33: 1884.955592 | AH33: 241.9026343
W34: 298.15 | X34: =Y24*PI() -> 62.83185307 | Z34: =AA24*PI() -> 47.1238898 | AA34: 47.1238898 | AB34: 43.98229715 | AC34: 94.24777961 | AD34: 94.24777961 | AE34: 117.9353882 | AF34: 132.9804754 | AG34: 1277.748564 | AH34: 132.9804754
A35: T | B35: 173 | C35: tr | D35: 1.824290985e-09 | E35: ts_out | F35: 4.5e-13 | G35: ts | H35: 4.7e-12 | I35: R1 | J35: 170.8592367 | K35: R2 | L35: 797.1740861 | M35: =J35/L35 -> 0.2143311476 | W35: 323.15 | X35: =Y25*PI() -> 56.54866776 | Z35: =AA25*PI() -> 43.98229715 | AA35: 40.8407045 | AB35: 40.8407045 | AC35: 81.68140899 | AD35: 78.53981634 | AE35: 100.5309649 | AF35: 106.8141502 | AG35: 1068.141502 | AH35: 106.8141502
A36: T | B36: =B35+10 -> 183 | C36: tr | D36: 1.418690058e-09 | E36: ts_out | F36: 4.7e-12 | G36: ts | H36: 4.6e-12 | I36: R1 | J36: 171.4400878 | K36: R2 | L36: 607.3593611 | M36: 0.2822712529
A37: T | B37: =B36+10 -> 193 | C37: tr | D37: 1.107163063e-09 | E37: ts_out | F37: 4.6e-12 | G37: ts | H37: 4.6e-12 | I37: R1 | J37: 175.0686719 | K37: R2 | L37: 481.2561406 | M37: 0.3637744168
A38: T | B38: 203 | C38: tr | D38: 8.712633602e-10 | E38: ts_out | F38: 4.6e-12 | G38: ts | H38: 4.2e-12 | I38: R1 | J38: 166.8258641 | K38: R2 | L38: 382.4849588 | M38: 0.4361632014
A39: T | B39: 213 | C39: tr | D39: 6.926575254e-10 | E39: ts_out | F39: 4.2e-12 | G39: ts | H39: 4e-12 | I39: R1 | J39: 163.6694435 | K39: R2 | L39: 317.5512632 | M39: 0.5154110926
A40: T | B40: 223 | C40: tr | D40: 5.572712469e-10 | E40: ts_out | F40: 4e-12 | G40: ts | H40: 3.4e-12 | I40: R1 | J40: 147.9106168 | K40: R2 | L40: 256.9420979 | M40: 0.5756573875
A41: T | B41: 233 | C41: tr | D41: 4.543113526e-10 | E41: ts_out | F41: 3.4e-12 | G41: ts | H41: 2.9e-12 | I41: R1 | J41: 133.7568988 | K41: R2 | L41: 211.5396942 | M41: 0.6323016554 | X41: R1 | Y41: 133.7568988
A42: T | B42: 243 | C42: tr | D42: 3.755293138e-10 | E42: ts_out | F42: 2.9e-12 | G42: ts | H42: 2.4e-12 | I42: R1 | J42: 118.4438936 | K42: R2 | L42: 174.07111 | M42: 0.6804339539 | Y42: H1 | Z42: H7 | AA42: H10/H8 | AB42: H10/H8 | AC42: H2 | AD42: H4/5 | AE42: H3 | AF42: H4/5 | AG42: H9 | AH42: H6
A43: T | B43: 253 | C43: tr | D43: 3.146594105e-10 | E43: ts_out | F43: 2.4e-12 | G43: ts | H43: 1.9e-12 | I43: R1 | J43: 102.4463433 | K43: R2 | L43: 142.1805444 | M43: 0.7205370026 | X43: 313.15 | Y43: 949.6676163 | AA43: 68.25938567 | AB43: 51.73305742 | AC43: 53.85029618 | AD43: 15.15151515 | AE43: 20.40816327 | AF43: 16.94915254 | AG43: 24.3902439
A44: T | B44: 263 | C44: tr | D44: 2.669850732e-10 | E44: ts_out | F44: 1.9e-12 | G44: ts | H44: 1.6e-12 | I44: R1 | J44: 91.43072783 | K44: R2 | L44: 120.5716255 | M44: 0.7583104854 | X44: 298.15 | Y44: 1057.082452 | Z44: 85.83690987 | AA44: 84.38818565 | AB44: 64.5994832 | AC44: 66.66666667 | AD44: 17.59014952 | AE44: 23.60160491 | AF44: 19.52743605 | AG44: 28.8184438 | AH44: 36.57778265
A45: T | B45: 273 | C45: tr | D45: 2.290005334e-10 | E45: ts_out | F45: 1.6e-12 | G45: ts | H45: 1.4e-12 | I45: R1 | J45: 82.87123815 | K45: R2 | L45: 104.8070527 | M45: 0.7907028774 | X45: 288.15 | Y45: 1158.748552 | Z45: 111.1111111 | AA45: 86.95652174 | AB45: 67.11409396 | AC45: 75.18796992 | AD45: 17.92114695 | AE45: 23.80952381 | AF45: 19.60784314 | AG45: 29.41176471
A46: T | B46: 283 | C46: tr | D46: 1.981442093e-10 | E46: ts_out | F46: 1.4e-12 | G46: ts | H46: 1.2e-12 | I46: R1 | J46: 74.5219348 | K46: R2 | L46: 91.14974062 | M46: 0.8175770364 | X46: 253.15 | Z46: 129.8701299 | AA46: 125 | AB46: 94.33962264 | AC46: 96.15384615 | AD46: 27.02702703 | AE46: 35.71428571 | AF46: 29.41176471 | AG46: 35.71428571
A47: T | B47: 293 | C47: tr | D47: 1.725866882e-10 | E47: ts_out | F47: 1.2e-12 | G47: ts | H47: 1e-12 | I47: R1 | J47: 66.59753911 | K47: R2 | L47: 79.17307535 | M47: 0.8411639792 | X47: 233.15 | Z47: 166.6666667 | AA47: 156.25 | AB47: 114.9425287 | AC47: 119.047619 | AD47: 33.33333333 | AE47: 43.47826087 | AF47: 37.03703704 | AG47: 43.47826087
A48: T | B48: 303 | C48: tr | D48: 1.510606929e-10 | E48: ts_out | F48: 1e-12 | G48: ts | H48: 8e-13 | I48: R1 | J48: 59.14457666 | K48: R2 | L48: 68.51081699 | M48: 0.863288153 | X48: 213.15 | Z48: 208.3333333 | AA48: 185.1851852 | AB48: 135.1351351 | AC48: 142.8571429 | AD48: 41.66666667 | AE48: 45.45454545 | AF48: 45.45454545 | AG48: 66.66666667
A49: T | B49: 313 | C49: tr | D49: 1.327236416e-10 | E49: ts_out | F49: 8e-13 | G49: ts | H49: 6.5e-13 | I49: R1 | J49: 53.02210623 | K49: R2 | L49: 60.04882238 | M49: 0.8829832814 | X49: 193.15 | Z49: 222.2222222 | AA49: 208.3333333 | AB49: 142.8571429 | AC49: 151.5151515 | AD49: 45.45454545 | AE49: 45.45454545 | AF49: 47.61904762 | AG49: 72.46376812
A50: T | B50: 323 | C50: tr | D50: 1.170457392e-10 | E50: ts_out | F50: 6.5e-13 | G50: ts | H50: 6e-13 | I50: R1 | J50: 49.33856046 | K50: R2 | L50: 54.99615349 | M50: 0.8971274777 | X50: 183.15 | Z50: 222.2222222 | AA50: 208.3333333 | AB50: 136.9863014 | AC50: 147.0588235 | AD50: 45.45454545 | AE50: 47.61904762 | AF50: 45.45454545 | AG50: 71.42857143
A51: T | B51: 333 | C51: tr | D51: 1.037182325e-10 | E51: ts_out | F51: 6e-13 | G51: ts | H51: 5e-13 | I51: R1 | J51: 44.56313979 | K51: R2 | L51: 48.89278776 | M51: 0.911446081
A52: T | B52: 343 | C52: tr | D52: 9.257771285e-11 | E52: ts_out | F52: 5e-13 | G52: ts | H52: 4.5e-13 | I52: R1 | J52: 41.21459132 | K52: R2 | L52: 44.70742762 | M52: 0.9218734674
A53: T | B53: 353 | C53: tr | D53: 8.354328679e-11 | E53: ts_out | F53: 4.5e-13 | G53: ts | H53: 4e-13 | I53: R1 | J53: 37.975217 | K53: R2 | L53: 40.80560042 | M53: =J53/L53 -> 0.9306373783
A54: T | B54: 363 | C54: tr | D54: 7.656413049e-11 | E54: ts_out | F54: 4e-13 | G54: ts | H54: 4e-13 | I54: R1 | J54: 36.79147146 | K54: R2 | L54: 39.3090113 | M54: 0.935955147
A55: T | B55: 373 | C55: tr | D55: 7.157548107e-11 | E55: ts_out | F55: 4e-13 | G55: ts | H55: 3e-13 | I55: R1 | J55: 31.45014245 | K55: R2 | L55: 33.35318592 | M55: 0.942942678
A56: T | B56: 383 | C56: tr | D56: 6.967606968e-11 | E56: ts_out | F56: 3e-13 | G56: ts | H56: 3e-13 | I56: R1 | J56: 30.89721322 | K56: R2 | L56: 32.67734712 | M56: 0.9455239161
A57: T | B57: 393 | C57: tr | D57: 6.790314169e-11 | E57: ts_out | F57: 3e-13 | G57: ts | H57: 3e-13 | I57: R1 | J57: 30.39982887 | K57: R2 | L57: 32.0709583 | M57: 0.9478927504
A58: T | B58: 403 | C58: tr | D58: 6.621820021e-11 | E58: ts_out | F58: 3e-13 | G58: ts | H58: 3e-13 | I58: R1 | J58: 29.94894025 | K58: R2 | L58: 31.52244331 | M58: 0.9500830872
A59: T | B59: 413 | C59: tr | D59: 6.461485396e-11 | E59: ts_out | F59: 3e-13 | G59: ts | H59: 3e-13 | I59: R1 | J59: 29.53927226 | K59: R2 | L59: 31.02507412 | M59: 0.9521096436
B62: Fe-H | C62: 6.039
A63: H3
A66: T | B66: 173 | C66: tr | D66: 1.824290985e-09 | E66: ts | F66: =H35 -> 4.7e-12 | G66: ts_out | H66: 4.7e-12 | I66: R2 | J66: 333.6438699 | K66: =J66/M66 -> 4.66567744 | L66: R1 | M66: 71.51027352
A67: T | B67: =B66+10 -> 183 | C67: tr | D67: 1.418690058e-09 | E67: ts | F67: =H36 -> 4.6e-12 | G67: ts_out | H67: 4.6e-12 | I67: R2 | J67: 254.2000941 | K67: 3.542691612 | L67: R1 | M67: 71.75337904
A68: T | B68: =B67+10 -> 193 | C68: tr | D68: 1.107163063e-09 | E68: ts | F68: 4.6e-12 | G68: ts_out | H68: 4.6e-12 | I68: R2 | J68: 201.4217019 | K68: 2.748956369 | L68: R1 | M68: 73.27206215
A69: T | B69: 203 | C69: tr | D69: 8.712633602e-10 | E69: ts | F69: 4.2e-12 | G69: ts_out | H69: 4.2e-12 | I69: R2 | J69: 160.0826771 | K69: 2.292719782 | L69: R1 | M69: 69.82217294
A70: T | B70: 213 | C70: tr | D70: 6.926575254e-10 | E70: ts | F70: 4e-12 | G70: ts_out | H70: 4e-12 | I70: R2 | J70: 132.9057658 | K70: 1.940198832 | L70: R1 | M70: 68.50110594
A71: T | B71: 223 | C71: tr | D71: 5.572712469e-10 | E71: ts | F71: 3.4e-12 | G71: ts_out | H71: 3.4e-12 | I71: R2 | J71: 107.5388141 | K71: 1.737144388 | L71: R1 | M71: 61.90551281
A72: T | B72: 233 | C72: tr | D72: 4.543113526e-10 | E72: ts | F72: 2.9e-12 | G72: ts_out | H72: 2.9e-12 | I72: R2 | J72: 88.53639807 | K72: 1.581523615 | L72: R1 | M72: 55.98171107
A73: T | B73: 243 | C73: tr | D73: 3.755293138e-10 | E73: ts | F73: 2.4e-12 | G73: ts_out | H73: 2.4e-12 | I73: R2 | J73: 72.85454932 | K73: 1.469650352 | L73: R1 | M73: 49.57270905
A74: T | B74: 253 | C74: tr | D74: 3.146594105e-10 | E74: ts | F74: 1.9e-12 | G74: ts_out | H74: 1.9e-12 | I74: R2 | J74: 59.50728691 | K74: 1.387853776 | L74: R1 | M74: 42.87720214
A75: T | B75: 263 | C75: tr | D75: 2.669850732e-10 | E75: ts | F75: 1.6e-12 | G75: ts_out | H75: 1.6e-12 | I75: R2 | J75: 50.4632356 | K75: 1.318721051 | L75: R1 | M75: 38.26680068
A76: T | B76: 273 | C76: tr | D76: 2.290005334e-10 | E76: ts | F76: 1.4e-12 | G76: ts_out | H76: 1.4e-12 | I76: R2 | J76: 43.86523756 | K76: 1.26469756 | L76: R1 | M76: 34.68436955
A77: T | B77: 283 | C77: tr | D77: 1.981442093e-10 | E77: ts | F77: 1.2e-12 | G77: ts_out | H77: 1.2e-12 | I77: R2 | J77: 38.14919819 | K77: 1.22312633 | L77: R1 | M77: 31.1899084
A78: T | B78: 293 | C78: tr | D78: 1.725866882e-10 | E78: ts | F78: 1e-12 | G78: ts_out | H78: 1e-12 | I78: R2 | J78: 33.13656542 | K78: 1.188828843 | L78: R1 | M78: 27.87328522
A79: T | B79: 303 | C79: tr | D79: 1.510606929e-10 | E79: ts | F79: 8e-13 | G79: ts_out | H79: 8e-13 | I79: R2 | J79: 28.67405565 | K79: 1.158361778 | L79: R1 | M79: 24.75397255
A80: T | B80: 313 | C80: tr | D80: 1.327236416e-10 | E80: ts | F80: 6.5e-13 | G80: ts_out | H80: 6.5e-13 | I80: R2 | J80: 25.13242946 | K80: 1.132524274 | L80: R1 | M80: 22.19151503
A81: T | B81: 323 | C81: tr | D81: 1.170457392e-10 | E81: ts | F81: 6e-13 | G81: ts_out | H81: 6e-13 | I81: R2 | J81: 23.01771947 | K81: 1.11466879 | L81: R1 | M81: 20.64982861
A82: T | B82: 333 | C82: tr | D82: 1.037182325e-10 | E82: ts | F82: 5e-13 | G82: ts_out | H82: 5e-13 | I82: R2 | J82: 20.46325791 | K82: 1.097157606 | L82: R1 | M82: 18.65115622
A83: T | B83: 343 | C83: tr | D83: 9.257771285e-11 | E83: ts | F83: 4.5e-13 | G83: ts_out | H83: 4.5e-13 | I83: R2 | J83: 18.71154548 | K83: 1.084747566 | L83: R1 | M83: 17.24967731
A84: T | B84: 353 | C84: tr | D84: 8.354328679e-11 | E84: ts | F84: 4e-13 | G84: ts_out | H84: 4e-13 | I84: R2 | J84: 17.07850102 | K84: 1.074532383 | L84: R1 | M84: 15.89389141
A85: T | B85: 363 | C85: tr | D85: 7.656413049e-11 | E85: ts | F85: 4e-13 | G85: ts_out | H85: 4e-13 | I85: R2 | J85: 16.45212869 | K85: 1.068427267 | L85: R1 | M85: 15.39845453
A86: T | B86: 373 | C86: tr | D86: 7.157548107e-11 | E86: ts | F86: 3e-13 | G86: ts_out | H86: 3e-13 | I86: R2 | J86: 13.95941767 | K86: 1.060509852 | L86: R1 | M86: 13.16293068
A87: T | B87: 383 | C87: tr | D87: 6.967606968e-11 | E87: ts | F87: 3e-13 | G87: ts_out | H87: 3e-13 | I87: R2 | J87: 13.67655665 | K87: 1.057614708 | L87: R1 | M87: 12.93151141
A88: T | B88: 393 | C88: tr | D88: 6.790314169e-11 | E88: ts | F88: 3e-13 | G88: ts_out | H88: 3e-13 | I88: R2 | J88: 13.42276276 | K88: 1.054971672 | L88: R1 | M88: 12.72333951
A89: T | B89: 403 | C89: tr | D89: 6.621820021e-11 | E89: ts | F89: 3e-13 | G89: ts_out | H89: 3e-13 | I89: R2 | J89: 13.193191 | K89: 1.052539524 | L89: R1 | M89: 12.53462763
A90: T | B90: 413 | C90: tr | D90: 6.461485396e-11 | E90: ts | F90: 3e-13 | G90: ts_out | H90: 3e-13 | I90: R2 | J90: 12.98502545 | K90: 1.050299203 | L90: R1 | M90: 12.36316795
B102: Fe-H | C102: 6.276
A103: H4/5
A106: T | B106: 173 | C106: tr | D106: 1.824290985e-09 | E106: ts | F106: =F66 -> 4.7e-12 | G106: ts_out | H106: 4.7e-12 | I106: R2 | J106: 264.8352062 | K106: =J106/M106 -> 4.66567744 | L106: R1 | M106: 56.76243366
A107: T | B107: =B106+10 -> 183 | C107: tr | D107: 1.418690058e-09 | E107: ts | F107: =F67 -> 4.6e-12 | G107: ts_out | H107: 4.6e-12 | I107: R2 | J107: 201.775427 | K107: 3.542691612 | L107: R1 | M107: 56.95540259
A108: T | B108: =B107+10 -> 193 | C108: tr | D108: 1.107163063e-09 | E108: ts | F108: 4.6e-12 | G108: ts_out | H108: 4.6e-12 | I108: R2 | J108: 159.8817265 | K108: 2.748956369 | L108: R1 | M108: 58.16088182
A109: T | B109: 203 | C109: tr | D109: 8.712633602e-10 | E109: ts | F109: 4.2e-12 | G109: ts_out | H109: 4.2e-12 | I109: R2 | J109: 127.0682084 | K109: 2.292719782 | L109: R1 | M109: 55.42247658
A110: T | B110: 213 | C110: tr | D110: 6.926575254e-10 | E110: ts | F110: 4e-12 | G110: ts_out | H110: 4e-12 | I110: R2 | J110: 105.4960965 | K110: 1.940198832 | L110: R1 | M110: 54.37385833
A111: T | B111: 223 | C111: tr | D111: 5.572712469e-10 | E111: ts | F111: 3.4e-12 | G111: ts_out | H111: 3.4e-12 | I111: R2 | J111: 85.36066922 | K111: 1.737144388 | L111: R1 | M111: 49.13849984
A112: T | B112: 233 | C112: tr | D112: 4.543113526e-10 | E112: ts | F112: 2.9e-12 | G112: ts_out | H112: 2.9e-12 | I112: R2 | J112: 70.2771948 | K112: 1.581523615 | L112: R1 | M112: 44.43638661
A113: T | B113: 243 | C113: tr | D113: 3.755293138e-10 | E113: ts | F113: 2.4e-12 | G113: ts_out | H113: 2.4e-12 | I113: R2 | J113: 57.82947427 | K113: 1.469650352 | L113: R1 | M113: 39.34913783
A114: T | B114: 253 | C114: tr | D114: 3.146594105e-10 | E114: ts | F114: 1.9e-12 | G114: ts_out | H114: 1.9e-12 | I114: R2 | J114: 47.23486933 | K114: 1.387853776 | L114: R1 | M114: 34.03447117
A115: T | B115: 263 | C115: tr | D115: 2.669850732e-10 | E115: ts | F115: 1.6e-12 | G115: ts_out | H115: 1.6e-12 | I115: R2 | J115: 40.05600765 | K115: 1.318721051 | L115: R1 | M115: 30.3748906
A116: T | B116: 273 | C116: tr | D116: 2.290005334e-10 | E116: ts | F116: 1.4e-12 | G116: ts_out | H116: 1.4e-12 | I116: R2 | J116: 34.81874022 | K116: 1.26469756 | L116: R1 | M116: 27.53127808
A117: T | B117: 283 | C117: tr | D117: 1.981442093e-10 | E117: ts | F117: 1.2e-12 | G117: ts_out | H117: 1.2e-12 | I117: R2 | J117: 30.28154173 | K117: 1.22312633 | L117: R1 | M117: 24.75749314
A118: T | B118: 293 | C118: tr | D118: 1.725866882e-10 | E118: ts | F118: 1e-12 | G118: ts_out | H118: 1e-12 | I118: R2 | J118: 26.30268357 | K118: 1.188828843 | L118: R1 | M118: 22.12486997
A119: T | B119: 303 | C119: tr | D119: 1.510606929e-10 | E119: ts | F119: 8e-13 | G119: ts_out | H119: 8e-13 | I119: R2 | J119: 22.76049443 | K119: 1.158361778 | L119: R1 | M119: 19.6488652
A120: T | B120: 313 | C120: tr | D120: 1.327236416e-10 | E120: ts | F120: 6.5e-13 | G120: ts_out | H120: 6.5e-13 | I120: R2 | J120: 19.94927148 | K120: 1.132524274 | L120: R1 | M120: 17.61487319
A121: T | B121: 323 | C121: tr | D121: 1.170457392e-10 | E121: ts | F121: 6e-13 | G121: ts_out | H121: 6e-13 | I121: R2 | J121: 18.2706863 | K121: 1.11466879 | L121: R1 | M121: 16.39113471
A122: T | B122: 333 | C122: tr | D122: 1.037182325e-10 | E122: ts | F122: 5e-13 | G122: ts_out | H122: 5e-13 | I122: R2 | J122: 16.2430412 | K122: 1.097157606 | L122: R1 | M122: 14.80465625
A123: T | B123: 343 | C123: tr | D123: 9.257771285e-11 | E123: ts | F123: 4.5e-13 | G123: ts_out | H123: 4.5e-13 | I123: R2 | J123: 14.8525912 | K123: 1.084747566 | L123: R1 | M123: 13.69220975
B131: Fe-H | C131: 6.041
A132: H9
A135: T | B135: 173 | C135: tr | D135: 1.824290985e-09 | E135: ts | F135: =F106 -> 4.7e-12 | G135: ts_out | H135: 4.7e-12 | I135: R2 | J135: 332.9816593 | K135: =J135/M135 -> 4.66567744 | L135: R1 | M135: 71.36834117
A136: T | B136: =B135+10 -> 183 | C136: tr | D136: 1.418690058e-09 | E136: ts | F136: =F107 -> 4.6e-12 | G136: ts_out | H136: 4.6e-12 | I136: R2 | J136: 253.6955621 | K136: 3.542691612 | L136: R1 | M136: 71.61096418
A137: T | B137: =B136+10 -> 193 | C137: tr | D137: 1.107163063e-09 | E137: ts | F137: 4.6e-12 | G137: ts_out | H137: 4.6e-12 | I137: R2 | J137: 201.0219236 | K137: 2.748956369 | L137: R1 | M137: 73.12663303
A138: T | B138: 203 | C138: tr | D138: 8.712633602e-10 | E138: ts | F138: 4.2e-12 | G138: ts_out | H138: 4.2e-12 | I138: R2 | J138: 159.7649478 | K138: 2.292719782 | L138: R1 | M138: 69.6835911
A139: T | B139: 213 | C139: tr | D139: 6.926575254e-10 | E139: ts | F139: 4e-12 | G139: ts_out | H139: 4e-12 | I139: R2 | J139: 132.6419767 | K139: 1.940198832 | L139: R1 | M139: 68.36514613
A140: T | B140: 223 | C140: tr | D140: 5.572712469e-10 | E140: ts | F140: 3.4e-12 | G140: ts_out | H140: 3.4e-12 | I140: R2 | J140: 107.325373 | K140: 1.737144388 | L140: R1 | M140: 61.78264382
A141: T | B141: 233 | C141: tr | D141: 4.543113526e-10 | E141: ts | F141: 2.9e-12 | G141: ts_out | H141: 2.9e-12 | I141: R2 | J141: 88.36067256 | K141: 1.581523615 | L141: R1 | M141: 55.87059953
A142: T | B142: 243 | C142: tr | D142: 3.755293138e-10 | E142: ts | F142: 2.4e-12 | G142: ts_out | H142: 2.4e-12 | I142: R2 | J142: 72.70994887 | K142: 1.469650352 | L142: R1 | M142: 49.474318
A143: T | B143: 253 | C143: tr | D143: 3.146594105e-10 | E143: ts | F143: 1.9e-12 | G143: ts_out | H143: 1.9e-12 | I143: R2 | J143: 59.38917787 | K143: 1.387853776 | L143: R1 | M143: 42.79210022
A144: T | B144: 263 | C144: tr | D144: 2.669850732e-10 | E144: ts | F144: 1.6e-12 | G144: ts_out | H144: 1.6e-12 | I144: R2 | J144: 50.36307705 | K144: 1.318721051 | L144: R1 | M144: 38.1908494
A145: T | B145: 273 | C145: tr | D145: 2.290005334e-10 | E145: ts | F145: 1.4e-12 | G145: ts_out | H145: 1.4e-12 | I145: R2 | J145: 43.77817459 | K145: 1.26469756 | L145: R1 | M145: 34.61552862
A146: T | B146: 283 | C146: tr | D146: 1.981442093e-10 | E146: ts | F146: 1.2e-12 | G146: ts_out | H146: 1.2e-12 | I146: R2 | J146: 38.07348032 | K146: 1.22312633 | L146: R1 | M146: 31.12800321
A147: T | B147: 293 | C147: tr | D147: 1.725866882e-10 | E147: ts | F147: 1e-12 | G147: ts_out | H147: 1e-12 | I147: R2 | J147: 33.07079654 | K147: 1.188828843 | L147: R1 | M147: 27.81796281
A148: T | B148: 303 | C148: tr | D148: 1.510606929e-10 | E148: ts | F148: 8e-13 | G148: ts_out | H148: 8e-13 | I148: R2 | J148: 28.61714389 | K148: 1.158361778 | L148: R1 | M148: 24.70484129
A149: T | B149: 313 | C149: tr | D149: 1.327236416e-10 | E149: ts | F149: 6.5e-13 | G149: ts_out | H149: 6.5e-13 | I149: R2 | J149: 25.08254704 | K149: 1.132524274 | L149: R1 | M149: 22.1474697
A150: T | B150: 323 | C150: tr | D150: 1.170457392e-10 | E150: ts | F150: 6e-13 | G150: ts_out | H150: 6e-13 | I150: R2 | J150: 22.9720343 | K150: 1.11466879 | L150: R1 | M150: 20.60884319
A151: T | B151: 333 | C151: tr | D151: 1.037182325e-10 | E151: ts | F151: 5e-13 | G151: ts_out | H151: 5e-13 | I151: R2 | J151: 20.42264279 | K151: 1.097157606 | L151: R1 | M151: 18.61413773
A152: T | B152: 343 | C152: tr | D152: 9.257771285e-11 | E152: ts | F152: 4.5e-13 | G152: ts_out | H152: 4.5e-13 | I152: R2 | J152: 18.67440713 | K152: 1.084747566 | L152: R1 | M152: 17.21544045
B157: Fe-H | C157: 5.2
A158: H6
A161: T | B161: 173 | C161: tr | D161: 1.824290985e-09 | E161: ts | F161: =F135 -> 4.7e-12 | G161: ts_out | H161: 4.7e-12 | I161: R2 | J161: 818.5651781 | K161: =J161/M161 -> 4.66567744 | L161: R1 | M161: 175.444014
A162: T | B162: =B161+10 -> 183 | C162: tr | D162: 1.418690058e-09 | E162: ts | F162: =F136 -> 4.6e-12 | G162: ts_out | H162: 4.6e-12 | I162: R2 | J162: 623.6570309 | K162: 3.542691612 | L162: R1 | M162: 176.0404515
A163: T | B163: =B162+10 -> 193 | C163: tr | D163: 1.107163063e-09 | E163: ts | F163: 4.6e-12 | G163: ts_out | H163: 4.6e-12 | I163: R2 | J163: 494.1700004 | K163: 2.748956369 | L163: R1 | M163: 179.7664037
A164: T | B164: 203 | C164: tr | D164: 8.712633602e-10 | E164: ts | F164: 4.2e-12 | G164: ts_out | H164: 4.2e-12 | I164: R2 | J164: 392.7484271 | K164: 2.292719782 | L164: R1 | M164: 171.3024113
A165: T | B165: 213 | C165: tr | D165: 6.926575254e-10 | E165: ts | F165: 4e-12 | G165: ts_out | H165: 4e-12 | I165: R2 | J165: 326.0723233 | K165: 1.940198832 | L165: R1 | M165: 168.0612924
A166: T | B166: 223 | C166: tr | D166: 5.572712469e-10 | E166: ts | F166: 3.4e-12 | G166: ts_out | H166: 3.4e-12 | I166: R2 | J166: 263.8367927 | K166: 1.737144388 | L166: R1 | M166: 151.8795988
A167: T | B167: 233 | C167: tr | D167: 4.543113526e-10 | E167: ts | F167: 2.9e-12 | G167: ts_out | H167: 2.9e-12 | I167: R2 | J167: 217.2160768 | K167: 1.581523615 | L167: R1 | M167: 137.3460849
A168: T | B168: 243 | C168: tr | D168: 3.755293138e-10 | E168: ts | F168: 2.4e-12 | G168: ts_out | H168: 2.4e-12 | I168: R2 | J168: 178.7420736 | K168: 1.469650352 | L168: R1 | M168: 121.6221758
A169: T | B169: 253 | C169: tr | D169: 3.146594105e-10 | E169: ts | F169: 1.9e-12 | G169: ts_out | H169: 1.9e-12 | I169: R2 | J169: 145.9957676 | K169: 1.387853776 | L169: R1 | M169: 105.1953528
A170: T | B170: 263 | C170: tr | D170: 2.669850732e-10 | E170: ts | F170: 1.6e-12 | G170: ts_out | H170: 1.6e-12 | I170: R2 | J170: 123.8070025 | K170: 1.318721051 | L170: R1 | M170: 93.88414816
A171: T | B171: 273 | C171: tr | D171: 2.290005334e-10 | E171: ts | F171: 1.4e-12 | G171: ts_out | H171: 1.4e-12 | I171: R2 | J171: 107.6194087 | K171: 1.26469756 | L171: R1 | M171: 85.09497612
A172: T | B172: 283 | C172: tr | D172: 1.981442093e-10 | E172: ts | F172: 1.2e-12 | G172: ts_out | H172: 1.2e-12 | I172: R2 | J172: 93.59562104 | K172: 1.22312633 | L172: R1 | M172: 76.52163047
A173: T | B173: 293 | C173: tr | D173: 1.725866882e-10 | E173: ts | F173: 1e-12 | G173: ts_out | H173: 1e-12 | I173: R2 | J173: 81.29757811 | K173: 1.188828843 | L173: R1 | M173: 68.3845943
A174: T | B174: 303 | C174: tr | D174: 1.510606929e-10 | E174: ts | F174: 8e-13 | G174: ts_out | H174: 8e-13 | I174: R2 | J174: 70.34921241 | K174: 1.158361778 | L174: R1 | M174: 60.73164165
A175: T | B175: 313 | C175: tr | D175: 1.327236416e-10 | E175: ts | F175: 6.5e-13 | G175: ts_out | H175: 6.5e-13 | I175: R2 | J175: 61.66015158 | K175: 1.132524274 | L175: R1 | M175: 54.44488298
A176: T | B176: 323 | C176: tr | D176: 1.170457392e-10 | E176: ts | F176: 6e-13 | G176: ts_out | H176: 6e-13 | I176: R2 | J176: 56.47190114 | K176: 1.11466879 | L176: R1 | M176: 50.66249423
A177: T | B177: 333 | C177: tr | D177: 1.037182325e-10 | E177: ts | F177: 5e-13 | G177: ts_out | H177: 5e-13 | I177: R2 | J177: 50.20475981 | K177: 1.097157606 | L177: R1 | M177: 45.75893158
A178: T | B178: 343 | C178: tr | D178: 9.257771285e-11 | E178: ts | F178: 4.5e-13 | G178: ts_out | H178: 4.5e-13 | I178: R2 | J178: 45.90709118 | K178: 1.084747566 | L178: R1 | M178: 42.32052932
A182: H7 | B182: Fe-H | C182: 5.068
A184: T | B184: 173 | C184: tr | D184: 1.824290985e-09 | E184: ts | F184: =F161 -> 4.7e-12 | G184: ts_out | H184: 4.7e-12 | I184: R2 | J184: 955.1106557 | K184: =J184/M184 -> 4.66567744 | L184: R1 | M184: 204.7099629
A185: T | B185: =B184+10 -> 183 | C185: tr | D185: 1.418690058e-09 | E185: ts | F185: =F162 -> 4.6e-12 | G185: ts_out | H185: 4.6e-12 | I185: R2 | J185: 727.6897327 | K185: 3.542691612 | L185: R1 | M185: 205.4058926
A186: T | B186: =B185+10 -> 193 | C186: tr | D186: 1.107163063e-09 | E186: ts | F186: 4.6e-12 | G186: ts_out | H186: 4.6e-12 | I186: R2 | J186: 576.6028726 | K186: 2.748956369 | L186: R1 | M186: 209.7533737
A187: T | B187: 203 | C187: tr | D187: 8.712633602e-10 | E187: ts | F187: 4.2e-12 | G187: ts_out | H187: 4.2e-12 | I187: R2 | J187: 458.2630898 | K187: 2.292719782 | L187: R1 | M187: 199.8774963
A188: T | B188: 213 | C188: tr | D188: 6.926575254e-10 | E188: ts | F188: 4e-12 | G188: ts_out | H188: 4e-12 | I188: R2 | J188: 380.4646947 | K188: 1.940198832 | L188: R1 | M188: 196.0957239
A189: T | B189: 223 | C189: tr | D189: 5.572712469e-10 | E189: ts | F189: 3.4e-12 | G189: ts_out | H189: 3.4e-12 | I189: R2 | J189: 307.847608 | K189: 1.737144388 | L189: R1 | M189: 177.2147498
A190: T | B190: 233 | C190: tr | D190: 4.543113526e-10 | E190: ts | F190: 2.9e-12 | G190: ts_out | H190: 2.9e-12 | I190: R2 | J190: 253.4500551 | K190: 1.581523615 | L190: R1 | M190: 160.2568894
A191: T | B191: 243 | C191: tr | D191: 3.755293138e-10 | E191: ts | F191: 2.4e-12 | G191: ts_out | H191: 2.4e-12 | I191: R2 | J191: 208.5581743 | K191: 1.469650352 | L191: R1 | M191: 141.9100631
A192: T | B192: 253 | C192: tr | D192: 3.146594105e-10 | E192: ts | F192: 1.9e-12 | G192: ts_out | H192: 1.9e-12 | I192: R2 | J192: 170.3494323 | K192: 1.387853776 | L192: R1 | M192: 122.7430693
A193: T | B193: 263 | C193: tr | D193: 2.669850732e-10 | E193: ts | F193: 1.6e-12 | G193: ts_out | H193: 1.6e-12 | I193: R2 | J193: 144.4593424 | K193: 1.318721051 | L193: R1 | M193: 109.5450341
A194: T | B194: 273 | C194: tr | D194: 2.290005334e-10 | E194: ts | F194: 1.4e-12 | G194: ts_out | H194: 1.4e-12 | I194: R2 | J194: 125.5714838 | K194: 1.26469756 | L194: R1 | M194: 99.28973356
A195: T | B195: 283 | C195: tr | D195: 1.981442093e-10 | E195: ts | F195: 1.2e-12 | G195: ts_out | H195: 1.2e-12 | I195: R2 | J195: 109.2083775 | K195: 1.22312633 | L195: R1 | M195: 89.28626163
A196: T | B196: 293 | C196: tr | D196: 1.725866882e-10 | E196: ts | F196: 1e-12 | G196: ts_out | H196: 1e-12 | I196: R2 | J196: 94.85888871 | K196: 1.188828843 | L196: R1 | M196: 79.79188029
A197: T | B197: 303 | C197: tr | D197: 1.510606929e-10 | E197: ts | F197: 8e-13 | G197: ts_out | H197: 8e-13 | I197: R2 | J197: 82.08421783 | K197: 1.158361778 | L197: R1 | M197: 70.86233281
A198: T | B198: 313 | C198: tr | D198: 1.327236416e-10 | E198: ts | F198: 6.5e-13 | G198: ts_out | H198: 6.5e-13 | I198: R2 | J198: 71.94572819 | K198: 1.132524274 | L198: R1 | M198: 63.52687516
A199: T | B199: 323 | C199: tr | D199: 1.170457392e-10 | E199: ts | F199: 6e-13 | G199: ts_out | H199: 6e-13 | I199: R2 | J199: 65.89202175 | K199: 1.11466879 | L199: R1 | M199: 59.11354327
A200: T | B200: 333 | C200: tr | D200: 1.037182325e-10 | E200: ts | F200: 5e-13 | G200: ts_out | H200: 5e-13 | I200: R2 | J200: 58.57945384 | K200: 1.097157606 | L200: R1 | M200: 53.39201363
A201: T | B201: 343 | C201: tr | D201: 9.257771285e-11 | E201: ts | F201: 4.5e-13 | G201: ts_out | H201: 4.5e-13 | I201: R2 | J201: 53.56488784 | K201: 1.084747566 | L201: R1 | M201: 49.38004889
B202: 353
B203: 363
B204: 373
B205: 383
B206: 393
